{"text_format":"1","workbook":"xlsx","n_sheets":11,"sheets":["Macros","Subscription","Control Centre","Setup","CW Period Allotment Template","TW Period Allotment Template","Staff Allocation","Staff Allocation Template","Class Template","Teacher Template","Teacher Free Period Template"],"not_rendered":{"charts":0,"images":7,"macros":1,"external_links":0,"defined_names":10,"comments":0,"pivot_tables":0},"unopened":[],"bounds":{"document_bytes":16777216,"sheet_cells":100000,"rows_first":2000,"rows_last":500,"rows_between":2000,"halvings":0,"cell_chars":16384,"cell_head_chars":4096},"cells_cut":0,"cells_raw":0,"read":"whole","date_system":"1900"}

{"sheet":"Macros","index":0,"n_rows":10,"n_cols":10,"rows_kept":10,"cut":false,"hidden":false,"merged":[[7,1,7,11],[1,6,4,11],[9,3,10,10]]}
[]
[null,null,null,null,null,null,"School Timetable\nGenerator"]
[]
[]
[]
[]
[null,null,null,null,null,null,null,null,null,"ˉ"]
[null,"ENABLE MACROS\nMacros must be enabled to use this Utility!\nPlease enable macros before using this Utility!"]
[]
[null,null,null,"If Macros are enabled and you are still seeing this page then click this…"]

{"sheet":"Subscription","index":1,"n_rows":11,"n_cols":10,"rows_kept":11,"cut":false,"hidden":true,"merged":[[1,6,4,11],[10,1,10,11],[7,4,8,10]]}
[]
[null,null,null,null,null,null,"School Timetable\nGenerator"]
[]
[]
[]
[]
[]
[null,null,null,null,"Click to revalidate Subscription. Close Workbook and Reopen it."]
[]
[null,null,null,null,null,null,null,null,null,"ˉ"]
[null,"Subscription Expired\nYour Subscription has expired!!\nPlease renew to continue using this Utility!!"]

{"sheet":"Control Centre","index":2,"n_rows":500,"n_cols":28,"rows_kept":500,"cut":false,"hidden":true,"merged":[[78,27,83,33],[85,27,90,33],[1,27,6,33],[8,27,13,33],[15,27,20,33],[22,27,27,33],[29,27,34,33],[64,27,69,33],[71,27,76,33],[36,27,41,33],[43,27,48,33],[50,27,55,33],[57,27,62,33],[1,6,4,11],[23,1,24,2],[25,2,25,3],[25,4,25,11],[26,2,26,3],[26,4,26,11],[14,2,16,3],[7,2,8,3],[10,2,12,3],[7,5,8,11],[10,5,12,11],[14,5,19,11],[50,4,55,11],[46,2,49,3],[46,1,49,1],[27,1,34,1],[35,4,39,11],[35,1,39,1],[35,2,39,3],[40,4,45,11],[40,2,45,3],[40,1,45,1],[27,2,34,3],[27,4,34,11],[46,4,49,11],[50,2,55,3],[50,1,55,1],[65,4,66,11],[65,2,66,3],[65,1,66,1],[63,4,64,11],[56,4,62,11],[56,2,62,3],[56,1,62,1],[63,2,64,3],[63,1,64,1]]}
[null,null,null,null,null,null,null,null,null,null,null,null,null,null,null,null,null,null,null,null,"Subject",null,"Class",null,null,"3054686539717569636b3442726f776e32664f78366a756d5073232425336f76657231746865374c617a7935446f6738"]
[null,null,null,null,null,null,"School Timetable\nGenerator",null,null,null,null,null,null,null,null,null,null,null,null,null,"Balewadi",null,"V Canary",null,null,"https://www.certitudeinfotech.com/schoolTT/addin/",null,"Clears TAG specific CW sheet and deletes all supporting sheets. Additional confirmation is required for resetting TimeTables. Does not delete the Master data in Staff Aloocation Sheet."]
[null,null,null,null,null,null,null,null,null,null,null,null,null,null,null,null,null,null,null,null,"Computer",null,"V Oyster"]
[null,null,null,null,null,null,null,null,null,null,null,null,null,null,null,null,null,null,null,null,"Eduten",null,"V Sepia",null,null,"https://www.certitudeinfotech.com/schoolTT/Subscriptions/"]
[null,null,null,null,null,null,null,null,null,null,null,null,null,null,null,null,null,null,null,null,"English",null,"VI Aster",null,null,"3054686539717569636b3442726f776e32664f78366a756d5073232425336f76657231746865374c617a7935446f6738"]
[null,null,null,null,null,null,null,null,null,null,null,"Version: 5.4.4",null,null,null,null,null,null,null,null,"FA-Dance",null,"VI Blush",null,null,9447628]
[null,null,null,null,null,null,null,null,null,null,null,null,null,null,null,null,null,null,null,null,"FA-Music",null,"VI Fuchsia",null,null,"Version: 5.4.4"]
[null,null,"TimeTable",null,null,"Select the Category to run related functions.\nAdmin/Timetable/Utility - Activates the related functions for Category selected.",null,null,null,null,null,null,null,null,null,null,null,null,null,null,"FA-Percussion",null,"VII Auburn",null,null,"MyPassword"]
[null,null,null,null,null,null,null,null,null,null,null,null,null,null,null,null,null,null,null,null,"Golden Hour",null,"VII Ebony",null,null,null,null,"All Sheets except Control Sheet, Setup  and templates are deleted (Master data 'Staff Allocation' is deleted only after user reconfirms). \nIf 'tag' value is not 'None' then all sheets relevant to the tag are deleted.\nIt will be useful when you need to share the Timetable generator with other Domains where the Master planning data will be different.\n***Please be careful to backup your master data before using this command."]
[null,null,null,null,null,null,null,null,null,null,null,null,null,null,null,null,null,null,null,null,"Hindi",null,"VII Sienna"]
[null,null,"None",null,null,"Select the TAG that needs to be added in timetable along with subject/class/teacher details.\nNone - No additional tag is to be added\nOffline/Online/Hybrid -Tag to be added as per requirement",null,null,null,null,null,null,null,null,null,null,null,null,null,null,"IBM",null,"VIII Honeydew"]
[null,null,null,null,null,null,null,null,null,null,null,null,null,null,null,null,null,null,null,null,"KA",null,"VIII Ivory"]
[null,null,null,null,null,null,null,null,null,null,null,null,null,null,null,null,null,null,null,null,"Lib-LSO",null,"VIII Pearl"]
[null,null,null,null,null,null,null,null,null,null,null,null,null,null,null,null,null,null,null,null,"LSO-Lib",null,"abrakadabra"]
[null,null,"Generate TimeTables",null,null,"Single Click:\nCreate All Timetables",null,null,null,null,null,null,null,null,null,null,null,null,null,null,"Marathi",null,"abrakadabra"]
[null,null,null,null,null,null,null,null,null,null,null,null,null,null,null,null,null,null,null,null,"Math",null,"abrakadabra",null,null,null,null,"Generates ClassWise & TeacherWise Allotments and generates the empty timetable sheets. If any data in CW period allocation is pre-populated then it is considered during calculations.\nWith every run, Class Name, Subject, Teacher and no.of periods are updated."]
[null,null,null,null,null,null,null,null,null,null,null,null,null,null,null,null,null,null,null,null,"PP V",null,"abrakadabra"]
[null,null,null,null,null,null,null,null,null,null,null,null,null,null,null,null,null,null,null,null,"PP VI",null,"abrakadabra"]
[null,null,null,null,null,null,null,null,null,null,null,null,null,null,null,null,null,null,null,null,"PP VII",null,"abrakadabra"]
[null,null,null,null,null,null,null,null,null,null,null,null,null,null,null,null,null,null,null,null,"PP VIII",null,"abrakadabra"]
[null,null,null,null,null,null,null,null,null,null,null,null,null,null,null,null,null,null,null,null,"Science",null,"abrakadabra"]
[null,null,null,null,null,null,null,null,null,null,null,null,null,null,null,null,null,null,null,null,"Skills",null,"abrakadabra"]
[null,null,null,null,null,null,null,null,null,null,null,null,null,null,null,null,null,null,null,null,"Sports",null,"abrakadabra",null,null,null,null,"Single Click:\nCreate All Timetables"]
[null,"Instructions:",null,null,null,null,null,null,null,null,null,null,null,null,null,null,null,null,null,null,"SST",null,"abrakadabra"]
[null,null,null,null,null,null,null,null,null,null,null,null,null,null,null,null,null,null,null,null,"Visual Art",null,"abrakadabra"]
[null,"S.No.","WorkSheet",null,"Instruction",null,null,null,null,null,null,null,null,null,null,null,null,null,null,null,"abrakadabra",null,"abrakadabra"]
[null,1,"Control Centre",null,"This sheet provide instructions and buttons to execute Timetable Utilities.",null,null,null,null,null,null,null,null,null,null,null,null,null,null,null,"abrakadabra",null,"abrakadabra"]
[null,2,"Staff Allocation",null,"Includes the preplanning data for TimeTable including the number of periods per subject and Class-Subject-Teacher mapping. \nMake sure that all teacher names/subjects are unique. \nMake sure that \"/\" is not used anywhere to represent optional data. You can use \"-\" for the same.\nThe subjects are ordered as per preference. For Example, if you want 'English' early in the day then keep it first. \nThe number of periods allocated per week for relevant subject should be entered. The total number of periods should match the available periods in the timetable.",null,null,null,null,null,null,null,null,null,null,null,null,null,null,null,"abrakadabra",null,"abrakadabra"]
[null,null,null,null,null,null,null,null,null,null,null,null,null,null,null,null,null,null,null,null,"abrakadabra",null,"abrakadabra"]
[null,null,null,null,null,null,null,null,null,null,null,null,null,null,null,null,null,null,null,null,"abrakadabra",null,"abrakadabra",null,null,null,null,"This will be helpful if a single Timetable is being generated with multiple tags. \nOnce CW/TW data is ready, run this command to get consolidated view of TW for applicable tags. In case of error, appropriate cells will be highlighted and can be corrected in CW before generating Timetables."]
[null,null,null,null,null,null,null,null,null,null,null,null,null,null,null,null,null,null,null,null,"abrakadabra",null,"abrakadabra"]
[null,null,null,null,null,null,null,null,null,null,null,null,null,null,null,null,null,null,null,null,"abrakadabra",null,"abrakadabra"]
[null,null,null,null,null,null,null,null,null,null,null,null,null,null,null,null,null,null,null,null,"abrakadabra",null,"abrakadabra"]
[null,null,null,null,null,null,null,null,null,null,null,null,null,null,null,null,null,null,null,null,"abrakadabra",null,"abrakadabra"]
[null,null,null,null,null,null,null,null,null,null,null,null,null,null,null,null,null,null,null,null,"abrakadabra",null,"abrakadabra"]
[null,3,"CW (Class wise) period allotment\n(Generated Automatically)",null,"Includes the number of periods per subject breakup per weekday for the class. \nDistributes the weekly subject periods automatically. \nIncase of error the 'Difference' column will have a positive value if it has extra period allocated. If the value is negative then more periods need to be allocated.",null,null,null,null,null,null,null,null,null,null,null,null,null,null,null,"abrakadabra",null,"abrakadabra"]
[null,null,null,null,null,null,null,null,null,null,null,null,null,null,null,null,null,null,null,null,"abrakadabra",null,"abrakadabra",null,null,null,null,"This option splits all timetables per class/teacher per sheet. It will be helpful when you want to refer to a single timetable at a time.\nClass_TimeTables.xlsm and Teacher_TimeTables.xlsm will be created after completion of this utility."]
[null,null,null,null,null,null,null,null,null,null,null,null,null,null,null,null,null,null,null,null,"abrakadabra",null,"abrakadabra"]
[null,null,null,null,null,null,null,null,null,null,null,null,null,null,null,null,null,null,null,null,"abrakadabra",null,"abrakadabra"]
[null,null,null,null,null,null,null,null,null,null,null,null,null,null,null,null,null,null,null,null,"abrakadabra",null,"abrakadabra"]
[null,4,"TW (Teacher wise) Period allotment\n(Generated Automatically)",null,"This sheet provide weekly period allocation for teachers.\nMake sure that teacher period allocations are as per expectation. \nThe relevant cell will be highlighted incase the allocation for a day exceeds the number of periods available in a day.\nIf any modifications are required then appropriate changes are to be made on \"CW period allotment\".",null,null,null,null,null,null,null,null,null,null,null,null,null,null,null,"abrakadabra",null,"abrakadabra"]
[null,null,null,null,null,null,null,null,null,null,null,null,null,null,null,null,null,null,null,null,"abrakadabra",null,"abrakadabra"]
[null,null,null,null,null,null,null,null,null,null,null,null,null,null,null,null,null,null,null,null,"abrakadabra",null,"abrakadabra"]
[null,null,null,null,null,null,null,null,null,null,null,null,null,null,null,null,null,null,null,null,"abrakadabra",null,"abrakadabra",null,null,null,null,"Imports Data from Older Version Utility as selected to current Utility.\nIt replaces all existing data with new data."]
[null,null,null,null,null,null,null,null,null,null,null,null,null,null,null,null,null,null,null,null,"abrakadabra",null,"abrakadabra"]
[null,null,null,null,null,null,null,null,null,null,null,null,null,null,null,null,null,null,null,null,"abrakadabra",null,"abrakadabra"]
[null,5,"Teacher Free Period\n(Generated Automatically)",null,"This sheet provides the details of free periods for all teachers.\nIn case of absent teacher, different teacher can be selected easily for substitution. The Class, Weekday and Period details are to entered in yellow field and teacher availability will be highlighted appropriately.",null,null,null,null,null,null,null,null,null,null,null,null,null,null,null,"abrakadabra",null,"abrakadabra"]
[null,null,null,null,null,null,null,null,null,null,null,null,null,null,null,null,null,null,null,null,"abrakadabra",null,"abrakadabra"]
[null,null,null,null,null,null,null,null,null,null,null,null,null,null,null,null,null,null,null,null,"abrakadabra",null,"abrakadabra"]
[null,null,null,null,null,null,null,null,null,null,null,null,null,null,null,null,null,null,null,null,"abrakadabra",null,"abrakadabra"]
[null,6,"TimeTable",null,"All classes/Teacher timetables can be found over here.\nThese Timetables will be auto generated when command is given for the same.\nIncase it is required that a particular subject is required in a particular period, then it can be entered over here before timetable generation. The format for the same is \"Subject + Alt-Enter + Teacher\". Please make sure that Subject/Teacher name spellings are exactly as per master.",null,null,null,null,null,null,null,null,null,null,null,null,null,null,null,"abrakadabra",null,"abrakadabra",null,null,null,null,"Locks Unlocks the Utility for Admin Functions.\nTo unLock: Enter Password.\nTo Lock: Rerun this command and Enter Password or Save/Close file."]
[null,null,null,null,null,null,null,null,null,null,null,null,null,null,null,null,null,null,null,null,"abrakadabra",null,"abrakadabra"]
[null,null,null,null,null,null,null,null,null,null,null,null,null,null,null,null,null,null,null,null,"abrakadabra",null,"abrakadabra"]
[null,null,null,null,null,null,null,null,null,null,null,null,null,null,null,null,null,null,null,null,"abrakadabra",null,"abrakadabra"]
[null,null,null,null,null,null,null,null,null,null,null,null,null,null,null,null,null,null,null,null,"abrakadabra",null,"abrakadabra"]
[null,null,null,null,null,null,null,null,null,null,null,null,null,null,null,null,null,null,null,null,"abrakadabra",null,"abrakadabra"]
[null,7,"error_log",null,"This sheet will be visible after calculations only if there are any errors during calculations and the program failed to allocate any particular subject. Provides details for class/Subject/Teacher/Weekday.\nIn order to resolve this error, \"Class wise period allotment\" needs to be visited and the relevant period is to be exchanged with another teacher with availability for same day.\nAfter all errors have been cleared, The Timetable is to be reset and then regenerated.\nThis activity is to be repeated till there are no more errors. That is.. the \"error_log\" sheet is not created.",null,null,null,null,null,null,null,null,null,null,null,null,null,null,null,"abrakadabra",null,"abrakadabra"]
[null,null,null,null,null,null,null,null,null,null,null,null,null,null,null,null,null,null,null,null,"abrakadabra",null,"abrakadabra",null,null,null,null,"Changes Admin Password."]
[null,null,null,null,null,null,null,null,null,null,null,null,null,null,null,null,null,null,null,null,"abrakadabra",null,"abrakadabra"]
[null,null,null,null,null,null,null,null,null,null,null,null,null,null,null,null,null,null,null,null,"abrakadabra",null,"abrakadabra"]
[null,null,null,null,null,null,null,null,null,null,null,null,null,null,null,null,null,null,null,null,"abrakadabra",null,"abrakadabra"]
[null,null,null,null,null,null,null,null,null,null,null,null,null,null,null,null,null,null,null,null,"abrakadabra",null,"abrakadabra"]
[null,null,null,null,null,null,null,null,null,null,null,null,null,null,null,null,null,null,null,null,"abrakadabra",null,"abrakadabra"]
[null,8,"Templates",null,"These are hidden sheets which are used for generating various data sheets.",null,null,null,null,null,null,null,null,null,null,null,null,null,null,null,"abrakadabra",null,"abrakadabra"]
[null,null,null,null,null,null,null,null,null,null,null,null,null,null,null,null,null,null,null,null,"abrakadabra",null,"abrakadabra",null,null,null,null,"Clears all Class and Teacher Timetables.\nThis will be helpful if CW/TW data is ready and timetables needs to be regenerated for another TAG OR the Generate Timetables utility needs to rerun due to changes to CW Period Allotment data."]
[null,9,"Setup",null,"Required sheet to setup Timetable format.",null,null,null,null,null,null,null,null,null,null,null,null,null,null,null,"abrakadabra",null,"abrakadabra"]
[null,null,null,null,null,null,null,null,null,null,null,null,null,null,null,null,null,null,null,null,"abrakadabra",null,"abrakadabra"]
[null,null,null,null,null,null,null,null,null,null,null,null,null,null,null,null,null,null,null,null,"abrakadabra",null,"abrakadabra"]
[null,null,null,null,null,null,null,null,null,null,null,null,null,null,null,null,null,null,null,null,"abrakadabra",null,"abrakadabra"]
[null,null,null,null,null,null,null,null,null,null,null,null,null,null,null,null,null,null,null,null,"abrakadabra",null,"abrakadabra"]
[null,null,null,null,null,null,null,null,null,null,null,null,null,null,null,null,null,null,null,null,"abrakadabra",null,"abrakadabra"]
[null,null,null,null,null,null,null,null,null,null,null,null,null,null,null,null,null,null,null,null,"abrakadabra",null,"abrakadabra",null,null,null,null,"Switches the color of Timetables from Color to Black & White and ViceVersa."]
[null,null,null,null,null,null,null,null,null,null,null,null,null,null,null,null,null,null,null,null,"abrakadabra",null,"abrakadabra"]
[null,null,null,null,null,null,null,null,null,null,null,null,null,null,null,null,null,null,null,null,"abrakadabra",null,"abrakadabra"]
[null,null,null,null,null,null,null,null,null,null,null,null,null,null,null,null,null,null,null,null,"abrakadabra",null,"abrakadabra"]
[null,null,null,null,null,null,null,null,null,null,null,null,null,null,null,null,null,null,null,null,"abrakadabra",null,"abrakadabra"]
[null,null,null,null,null,null,null,null,null,null,null,null,null,null,null,null,null,null,null,null,"abrakadabra",null,"abrakadabra"]
[null,null,null,null,null,null,null,null,null,null,null,null,null,null,null,null,null,null,null,null,"abrakadabra",null,"abrakadabra"]
[null,null,null,null,null,null,null,null,null,null,null,null,null,null,null,null,null,null,null,null,"abrakadabra",null,"abrakadabra",null,null,null,null,"Marks all Timetable periods with data with ~~ . These periods will be  blocked and not be shuffled during the Timetable generation."]
[null,null,null,null,null,null,null,null,null,null,null,null,null,null,null,null,null,null,null,null,"abrakadabra",null,"abrakadabra"]
[null,null,null,null,null,null,null,null,null,null,null,null,null,null,null,null,null,null,null,null,"abrakadabra",null,"abrakadabra"]
[null,null,null,null,null,null,null,null,null,null,null,null,null,null,null,null,null,null,null,null,"abrakadabra",null,"abrakadabra"]
[null,null,null,null,null,null,null,null,null,null,null,null,null,null,null,null,null,null,null,null,"abrakadabra",null,"abrakadabra"]
[null,null,null,null,null,null,null,null,null,null,null,null,null,null,null,null,null,null,null,null,"abrakadabra",null,"abrakadabra"]
[null,null,null,null,null,null,null,null,null,null,null,null,null,null,null,null,null,null,null,null,"abrakadabra",null,"abrakadabra"]
[null,null,null,null,null,null,null,null,null,null,null,null,null,null,null,null,null,null,null,null,"abrakadabra",null,"abrakadabra",null,null,null,null,"Removes all blocked period ~~ marks from Timetables."]
[null,null,null,null,null,null,null,null,null,null,null,null,null,null,null,null,null,null,null,null,"abrakadabra",null,"abrakadabra"]
[null,null,null,null,null,null,null,null,null,null,null,null,null,null,null,null,null,null,null,null,"abrakadabra",null,"abrakadabra"]
[null,null,null,null,null,null,null,null,null,null,null,null,null,null,null,null,null,null,null,null,"abrakadabra",null,"abrakadabra"]
[null,null,null,null,null,null,null,null,null,null,null,null,null,null,null,null,null,null,null,null,"abrakadabra",null,"abrakadabra"]
[null,null,null,null,null,null,null,null,null,null,null,null,null,null,null,null,null,null,null,null,"abrakadabra",null,"abrakadabra"]
[null,null,null,null,null,null,null,null,null,null,null,null,null,null,null,null,null,null,null,null,"abrakadabra",null,"abrakadabra"]
[null,null,null,null,null,null,null,null,null,null,null,null,null,null,null,null,null,null,null,null,"abrakadabra",null,"abrakadabra"]
[null,null,null,null,null,null,null,null,null,null,null,null,null,null,null,null,null,null,null,null,"abrakadabra",null,"abrakadabra"]
[null,null,null,null,null,null,null,null,null,null,null,null,null,null,null,null,null,null,null,null,"abrakadabra",null,"abrakadabra"]
[null,null,null,null,null,null,null,null,null,null,null,null,null,null,null,null,null,null,null,null,"abrakadabra",null,"abrakadabra"]
[null,null,null,null,null,null,null,null,null,null,null,null,null,null,null,null,null,null,null,null,"abrakadabra",null,"abrakadabra"]
[null,null,null,null,null,null,null,null,null,null,null,null,null,null,null,null,null,null,null,null,"abrakadabra",null,"abrakadabra"]
[null,null,null,null,null,null,null,null,null,null,null,null,null,null,null,null,null,null,null,null,"abrakadabra",null,"abrakadabra"]
[null,null,null,null,null,null,null,null,null,null,null,null,null,null,null,null,null,null,null,null,"abrakadabra",null,"abrakadabra"]
[null,null,null,null,null,null,null,null,null,null,null,null,null,null,null,null,null,null,null,null,"abrakadabra",null,"abrakadabra"]
[null,null,null,null,null,null,null,null,null,null,null,null,null,null,null,null,null,null,null,null,"abrakadabra",null,"abrakadabra"]
[null,null,null,null,null,null,null,null,null,null,null,null,null,null,null,null,null,null,null,null,"abrakadabra",null,"abrakadabra"]
[null,null,null,null,null,null,null,null,null,null,null,null,null,null,null,null,null,null,null,null,"abrakadabra",null,"abrakadabra"]
[null,null,null,null,null,null,null,null,null,null,null,null,null,null,null,null,null,null,null,null,"abrakadabra",null,"abrakadabra"]
[null,null,null,null,null,null,null,null,null,null,null,null,null,null,null,null,null,null,null,null,"abrakadabra",null,"abrakadabra"]
[null,null,null,null,null,null,null,null,null,null,null,null,null,null,null,null,null,null,null,null,"abrakadabra",null,"abrakadabra"]
[null,null,null,null,null,null,null,null,null,null,null,null,null,null,null,null,null,null,null,null,"abrakadabra",null,"abrakadabra"]
[null,null,null,null,null,null,null,null,null,null,null,null,null,null,null,null,null,null,null,null,"abrakadabra",null,"abrakadabra"]
[null,null,null,null,null,null,null,null,null,null,null,null,null,null,null,null,null,null,null,null,"abrakadabra",null,"abrakadabra"]
[null,null,null,null,null,null,null,null,null,null,null,null,null,null,null,null,null,null,null,null,"abrakadabra",null,"abrakadabra"]
[null,null,null,null,null,null,null,null,null,null,null,null,null,null,null,null,null,null,null,null,"abrakadabra",null,"abrakadabra"]
[null,null,null,null,null,null,null,null,null,null,null,null,null,null,null,null,null,null,null,null,"abrakadabra",null,"abrakadabra"]
[null,null,null,null,null,null,null,null,null,null,null,null,null,null,null,null,null,null,null,null,"abrakadabra",null,"abrakadabra"]
[null,null,null,null,null,null,null,null,null,null,null,null,null,null,null,null,null,null,null,null,"abrakadabra",null,"abrakadabra"]
[null,null,null,null,null,null,null,null,null,null,null,null,null,null,null,null,null,null,null,null,"abrakadabra",null,"abrakadabra"]
[null,null,null,null,null,null,null,null,null,null,null,null,null,null,null,null,null,null,null,null,"abrakadabra",null,"abrakadabra"]
[null,null,null,null,null,null,null,null,null,null,null,null,null,null,null,null,null,null,null,null,"abrakadabra",null,"abrakadabra"]
[null,null,null,null,null,null,null,null,null,null,null,null,null,null,null,null,null,null,null,null,"abrakadabra",null,"abrakadabra"]
[null,null,null,null,null,null,null,null,null,null,null,null,null,null,null,null,null,null,null,null,"abrakadabra",null,"abrakadabra"]
[null,null,null,null,null,null,null,null,null,null,null,null,null,null,null,null,null,null,null,null,"abrakadabra",null,"abrakadabra"]
[null,null,null,null,null,null,null,null,null,null,null,null,null,null,null,null,null,null,null,null,"abrakadabra",null,"abrakadabra"]
[null,null,null,null,null,null,null,null,null,null,null,null,null,null,null,null,null,null,null,null,"abrakadabra",null,"abrakadabra"]
[null,null,null,null,null,null,null,null,null,null,null,null,null,null,null,null,null,null,null,null,"abrakadabra",null,"abrakadabra"]
[null,null,null,null,null,null,null,null,null,null,null,null,null,null,null,null,null,null,null,null,"abrakadabra",null,"abrakadabra"]
[null,null,null,null,null,null,null,null,null,null,null,null,null,null,null,null,null,null,null,null,"abrakadabra",null,"abrakadabra"]
[null,null,null,null,null,null,null,null,null,null,null,null,null,null,null,null,null,null,null,null,"abrakadabra",null,"abrakadabra"]
[null,null,null,null,null,null,null,null,null,null,null,null,null,null,null,null,null,null,null,null,"abrakadabra",null,"abrakadabra"]
[null,null,null,null,null,null,null,null,null,null,null,null,null,null,null,null,null,null,null,null,"abrakadabra",null,"abrakadabra"]
[null,null,null,null,null,null,null,null,null,null,null,null,null,null,null,null,null,null,null,null,"abrakadabra",null,"abrakadabra"]
[null,null,null,null,null,null,null,null,null,null,null,null,null,null,null,null,null,null,null,null,"abrakadabra",null,"abrakadabra"]
[null,null,null,null,null,null,null,null,null,null,null,null,null,null,null,null,null,null,null,null,"abrakadabra",null,"abrakadabra"]
[null,null,null,null,null,null,null,null,null,null,null,null,null,null,null,null,null,null,null,null,"abrakadabra",null,"abrakadabra"]
[null,null,null,null,null,null,null,null,null,null,null,null,null,null,null,null,null,null,null,null,"abrakadabra",null,"abrakadabra"]
[null,null,null,null,null,null,null,null,null,null,null,null,null,null,null,null,null,null,null,null,"abrakadabra",null,"abrakadabra"]
[null,null,null,null,null,null,null,null,null,null,null,null,null,null,null,null,null,null,null,null,"abrakadabra",null,"abrakadabra"]
[null,null,null,null,null,null,null,null,null,null,null,null,null,null,null,null,null,null,null,null,"abrakadabra",null,"abrakadabra"]
[null,null,null,null,null,null,null,null,null,null,null,null,null,null,null,null,null,null,null,null,"abrakadabra",null,"abrakadabra"]
[null,null,null,null,null,null,null,null,null,null,null,null,null,null,null,null,null,null,null,null,"abrakadabra",null,"abrakadabra"]
[null,null,null,null,null,null,null,null,null,null,null,null,null,null,null,null,null,null,null,null,"abrakadabra",null,"abrakadabra"]
[null,null,null,null,null,null,null,null,null,null,null,null,null,null,null,null,null,null,null,null,"abrakadabra",null,"abrakadabra"]
[null,null,null,null,null,null,null,null,null,null,null,null,null,null,null,null,null,null,null,null,"abrakadabra",null,"abrakadabra"]
[null,null,null,null,null,null,null,null,null,null,null,null,null,null,null,null,null,null,null,null,"abrakadabra",null,"abrakadabra"]
[null,null,null,null,null,null,null,null,null,null,null,null,null,null,null,null,null,null,null,null,"abrakadabra",null,"abrakadabra"]
[null,null,null,null,null,null,null,null,null,null,null,null,null,null,null,null,null,null,null,null,"abrakadabra",null,"abrakadabra"]
[null,null,null,null,null,null,null,null,null,null,null,null,null,null,null,null,null,null,null,null,"abrakadabra",null,"abrakadabra"]
[null,null,null,null,null,null,null,null,null,null,null,null,null,null,null,null,null,null,null,null,"abrakadabra",null,"abrakadabra"]
[null,null,null,null,null,null,null,null,null,null,null,null,null,null,null,null,null,null,null,null,"abrakadabra",null,"abrakadabra"]
[null,null,null,null,null,null,null,null,null,null,null,null,null,null,null,null,null,null,null,null,"abrakadabra",null,"abrakadabra"]
[null,null,null,null,null,null,null,null,null,null,null,null,null,null,null,null,null,null,null,null,"abrakadabra",null,"abrakadabra"]
[null,null,null,null,null,null,null,null,null,null,null,null,null,null,null,null,null,null,null,null,"abrakadabra",null,"abrakadabra"]
[null,null,null,null,null,null,null,null,null,null,null,null,null,null,null,null,null,null,null,null,"abrakadabra",null,"abrakadabra"]
[null,null,null,null,null,null,null,null,null,null,null,null,null,null,null,null,null,null,null,null,"abrakadabra",null,"abrakadabra"]
[null,null,null,null,null,null,null,null,null,null,null,null,null,null,null,null,null,null,null,null,"abrakadabra",null,"abrakadabra"]
[null,null,null,null,null,null,null,null,null,null,null,null,null,null,null,null,null,null,null,null,"abrakadabra",null,"abrakadabra"]
[null,null,null,null,null,null,null,null,null,null,null,null,null,null,null,null,null,null,null,null,"abrakadabra",null,"abrakadabra"]
[null,null,null,null,null,null,null,null,null,null,null,null,null,null,null,null,null,null,null,null,"abrakadabra",null,"abrakadabra"]
[null,null,null,null,null,null,null,null,null,null,null,null,null,null,null,null,null,null,null,null,"abrakadabra",null,"abrakadabra"]
[null,null,null,null,null,null,null,null,null,null,null,null,null,null,null,null,null,null,null,null,"abrakadabra",null,"abrakadabra"]
[null,null,null,null,null,null,null,null,null,null,null,null,null,null,null,null,null,null,null,null,"abrakadabra",null,"abrakadabra"]
[null,null,null,null,null,null,null,null,null,null,null,null,null,null,null,null,null,null,null,null,"abrakadabra",null,"abrakadabra"]
[null,null,null,null,null,null,null,null,null,null,null,null,null,null,null,null,null,null,null,null,"abrakadabra",null,"abrakadabra"]
[null,null,null,null,null,null,null,null,null,null,null,null,null,null,null,null,null,null,null,null,"abrakadabra",null,"abrakadabra"]
[null,null,null,null,null,null,null,null,null,null,null,null,null,null,null,null,null,null,null,null,"abrakadabra",null,"abrakadabra"]
[null,null,null,null,null,null,null,null,null,null,null,null,null,null,null,null,null,null,null,null,"abrakadabra",null,"abrakadabra"]
[null,null,null,null,null,null,null,null,null,null,null,null,null,null,null,null,null,null,null,null,"abrakadabra",null,"abrakadabra"]
[null,null,null,null,null,null,null,null,null,null,null,null,null,null,null,null,null,null,null,null,"abrakadabra",null,"abrakadabra"]
[null,null,null,null,null,null,null,null,null,null,null,null,null,null,null,null,null,null,null,null,"abrakadabra",null,"abrakadabra"]
[null,null,null,null,null,null,null,null,null,null,null,null,null,null,null,null,null,null,null,null,"abrakadabra",null,"abrakadabra"]
[null,null,null,null,null,null,null,null,null,null,null,null,null,null,null,null,null,null,null,null,"abrakadabra",null,"abrakadabra"]
[null,null,null,null,null,null,null,null,null,null,null,null,null,null,null,null,null,null,null,null,"abrakadabra",null,"abrakadabra"]
[null,null,null,null,null,null,null,null,null,null,null,null,null,null,null,null,null,null,null,null,"abrakadabra",null,"abrakadabra"]
[null,null,null,null,null,null,null,null,null,null,null,null,null,null,null,null,null,null,null,null,"abrakadabra",null,"abrakadabra"]
[null,null,null,null,null,null,null,null,null,null,null,null,null,null,null,null,null,null,null,null,"abrakadabra",null,"abrakadabra"]
[null,null,null,null,null,null,null,null,null,null,null,null,null,null,null,null,null,null,null,null,"abrakadabra",null,"abrakadabra"]
[null,null,null,null,null,null,null,null,null,null,null,null,null,null,null,null,null,null,null,null,"abrakadabra",null,"abrakadabra"]
[null,null,null,null,null,null,null,null,null,null,null,null,null,null,null,null,null,null,null,null,"abrakadabra",null,"abrakadabra"]
[null,null,null,null,null,null,null,null,null,null,null,null,null,null,null,null,null,null,null,null,"abrakadabra",null,"abrakadabra"]
[null,null,null,null,null,null,null,null,null,null,null,null,null,null,null,null,null,null,null,null,"abrakadabra",null,"abrakadabra"]
[null,null,null,null,null,null,null,null,null,null,null,null,null,null,null,null,null,null,null,null,"abrakadabra",null,"abrakadabra"]
[null,null,null,null,null,null,null,null,null,null,null,null,null,null,null,null,null,null,null,null,"abrakadabra",null,"abrakadabra"]
[null,null,null,null,null,null,null,null,null,null,null,null,null,null,null,null,null,null,null,null,"abrakadabra",null,"abrakadabra"]
[null,null,null,null,null,null,null,null,null,null,null,null,null,null,null,null,null,null,null,null,"abrakadabra",null,"abrakadabra"]
[null,null,null,null,null,null,null,null,null,null,null,null,null,null,null,null,null,null,null,null,"abrakadabra",null,"abrakadabra"]
[null,null,null,null,null,null,null,null,null,null,null,null,null,null,null,null,null,null,null,null,"abrakadabra",null,"abrakadabra"]
[null,null,null,null,null,null,null,null,null,null,null,null,null,null,null,null,null,null,null,null,"abrakadabra",null,"abrakadabra"]
[null,null,null,null,null,null,null,null,null,null,null,null,null,null,null,null,null,null,null,null,"abrakadabra",null,"abrakadabra"]
[null,null,null,null,null,null,null,null,null,null,null,null,null,null,null,null,null,null,null,null,"abrakadabra",null,"abrakadabra"]
[null,null,null,null,null,null,null,null,null,null,null,null,null,null,null,null,null,null,null,null,"abrakadabra",null,"abrakadabra"]
[null,null,null,null,null,null,null,null,null,null,null,null,null,null,null,null,null,null,null,null,"abrakadabra",null,"abrakadabra"]
[null,null,null,null,null,null,null,null,null,null,null,null,null,null,null,null,null,null,null,null,"abrakadabra",null,"abrakadabra"]
[null,null,null,null,null,null,null,null,null,null,null,null,null,null,null,null,null,null,null,null,"abrakadabra",null,"abrakadabra"]
[null,null,null,null,null,null,null,null,null,null,null,null,null,null,null,null,null,null,null,null,"abrakadabra",null,"abrakadabra"]
[null,null,null,null,null,null,null,null,null,null,null,null,null,null,null,null,null,null,null,null,"abrakadabra",null,"abrakadabra"]
[null,null,null,null,null,null,null,null,null,null,null,null,null,null,null,null,null,null,null,null,"abrakadabra",null,"abrakadabra"]
[null,null,null,null,null,null,null,null,null,null,null,null,null,null,null,null,null,null,null,null,"abrakadabra",null,"abrakadabra"]
[null,null,null,null,null,null,null,null,null,null,null,null,null,null,null,null,null,null,null,null,"abrakadabra",null,"abrakadabra"]
[null,null,null,null,null,null,null,null,null,null,null,null,null,null,null,null,null,null,null,null,"abrakadabra",null,"abrakadabra"]
[null,null,null,null,null,null,null,null,null,null,null,null,null,null,null,null,null,null,null,null,"abrakadabra",null,"abrakadabra"]
[null,null,null,null,null,null,null,null,null,null,null,null,null,null,null,null,null,null,null,null,"abrakadabra",null,"abrakadabra"]
[null,null,null,null,null,null,null,null,null,null,null,null,null,null,null,null,null,null,null,null,"abrakadabra",null,"abrakadabra"]
[null,null,null,null,null,null,null,null,null,null,null,null,null,null,null,null,null,null,null,null,"abrakadabra",null,"abrakadabra"]
[null,null,null,null,null,null,null,null,null,null,null,null,null,null,null,null,null,null,null,null,"abrakadabra",null,"abrakadabra"]
[null,null,null,null,null,null,null,null,null,null,null,null,null,null,null,null,null,null,null,null,"abrakadabra",null,"abrakadabra"]
[null,null,null,null,null,null,null,null,null,null,null,null,null,null,null,null,null,null,null,null,"abrakadabra",null,"abrakadabra"]
[null,null,null,null,null,null,null,null,null,null,null,null,null,null,null,null,null,null,null,null,"abrakadabra",null,"abrakadabra"]
[null,null,null,null,null,null,null,null,null,null,null,null,null,null,null,null,null,null,null,null,"abrakadabra",null,"abrakadabra"]
[null,null,null,null,null,null,null,null,null,null,null,null,null,null,null,null,null,null,null,null,"abrakadabra",null,"abrakadabra"]
[null,null,null,null,null,null,null,null,null,null,null,null,null,null,null,null,null,null,null,null,"abrakadabra",null,"abrakadabra"]
[null,null,null,null,null,null,null,null,null,null,null,null,null,null,null,null,null,null,null,null,"abrakadabra",null,"abrakadabra"]
[null,null,null,null,null,null,null,null,null,null,null,null,null,null,null,null,null,null,null,null,"abrakadabra",null,"abrakadabra"]
[null,null,null,null,null,null,null,null,null,null,null,null,null,null,null,null,null,null,null,null,"abrakadabra",null,"abrakadabra"]
[null,null,null,null,null,null,null,null,null,null,null,null,null,null,null,null,null,null,null,null,"abrakadabra",null,"abrakadabra"]
[null,null,null,null,null,null,null,null,null,null,null,null,null,null,null,null,null,null,null,null,"abrakadabra",null,"abrakadabra"]
[null,null,null,null,null,null,null,null,null,null,null,null,null,null,null,null,null,null,null,null,"abrakadabra",null,"abrakadabra"]
[null,null,null,null,null,null,null,null,null,null,null,null,null,null,null,null,null,null,null,null,"abrakadabra",null,"abrakadabra"]
[null,null,null,null,null,null,null,null,null,null,null,null,null,null,null,null,null,null,null,null,"abrakadabra",null,"abrakadabra"]
[null,null,null,null,null,null,null,null,null,null,null,null,null,null,null,null,null,null,null,null,"abrakadabra",null,"abrakadabra"]
[null,null,null,null,null,null,null,null,null,null,null,null,null,null,null,null,null,null,null,null,"abrakadabra",null,"abrakadabra"]
[null,null,null,null,null,null,null,null,null,null,null,null,null,null,null,null,null,null,null,null,"abrakadabra",null,"abrakadabra"]
[null,null,null,null,null,null,null,null,null,null,null,null,null,null,null,null,null,null,null,null,"abrakadabra",null,"abrakadabra"]
[null,null,null,null,null,null,null,null,null,null,null,null,null,null,null,null,null,null,null,null,"abrakadabra",null,"abrakadabra"]
[null,null,null,null,null,null,null,null,null,null,null,null,null,null,null,null,null,null,null,null,"abrakadabra",null,"abrakadabra"]
[null,null,null,null,null,null,null,null,null,null,null,null,null,null,null,null,null,null,null,null,"abrakadabra",null,"abrakadabra"]
[null,null,null,null,null,null,null,null,null,null,null,null,null,null,null,null,null,null,null,null,"abrakadabra",null,"abrakadabra"]
[null,null,null,null,null,null,null,null,null,null,null,null,null,null,null,null,null,null,null,null,"abrakadabra",null,"abrakadabra"]
[null,null,null,null,null,null,null,null,null,null,null,null,null,null,null,null,null,null,null,null,"abrakadabra",null,"abrakadabra"]
[null,null,null,null,null,null,null,null,null,null,null,null,null,null,null,null,null,null,null,null,"abrakadabra",null,"abrakadabra"]
[null,null,null,null,null,null,null,null,null,null,null,null,null,null,null,null,null,null,null,null,"abrakadabra",null,"abrakadabra"]
[null,null,null,null,null,null,null,null,null,null,null,null,null,null,null,null,null,null,null,null,"abrakadabra",null,"abrakadabra"]
[null,null,null,null,null,null,null,null,null,null,null,null,null,null,null,null,null,null,null,null,"abrakadabra",null,"abrakadabra"]
[null,null,null,null,null,null,null,null,null,null,null,null,null,null,null,null,null,null,null,null,"abrakadabra",null,"abrakadabra"]
[null,null,null,null,null,null,null,null,null,null,null,null,null,null,null,null,null,null,null,null,"abrakadabra",null,"abrakadabra"]
[null,null,null,null,null,null,null,null,null,null,null,null,null,null,null,null,null,null,null,null,"abrakadabra",null,"abrakadabra"]
[null,null,null,null,null,null,null,null,null,null,null,null,null,null,null,null,null,null,null,null,"abrakadabra",null,"abrakadabra"]
[null,null,null,null,null,null,null,null,null,null,null,null,null,null,null,null,null,null,null,null,"abrakadabra",null,"abrakadabra"]
[null,null,null,null,null,null,null,null,null,null,null,null,null,null,null,null,null,null,null,null,"abrakadabra",null,"abrakadabra"]
[null,null,null,null,null,null,null,null,null,null,null,null,null,null,null,null,null,null,null,null,"abrakadabra",null,"abrakadabra"]
[null,null,null,null,null,null,null,null,null,null,null,null,null,null,null,null,null,null,null,null,"abrakadabra",null,"abrakadabra"]
[null,null,null,null,null,null,null,null,null,null,null,null,null,null,null,null,null,null,null,null,"abrakadabra",null,"abrakadabra"]
[null,null,null,null,null,null,null,null,null,null,null,null,null,null,null,null,null,null,null,null,"abrakadabra",null,"abrakadabra"]
[null,null,null,null,null,null,null,null,null,null,null,null,null,null,null,null,null,null,null,null,"abrakadabra",null,"abrakadabra"]
[null,null,null,null,null,null,null,null,null,null,null,null,null,null,null,null,null,null,null,null,"abrakadabra",null,"abrakadabra"]
[null,null,null,null,null,null,null,null,null,null,null,null,null,null,null,null,null,null,null,null,"abrakadabra",null,"abrakadabra"]
[null,null,null,null,null,null,null,null,null,null,null,null,null,null,null,null,null,null,null,null,"abrakadabra",null,"abrakadabra"]
[null,null,null,null,null,null,null,null,null,null,null,null,null,null,null,null,null,null,null,null,"abrakadabra",null,"abrakadabra"]
[null,null,null,null,null,null,null,null,null,null,null,null,null,null,null,null,null,null,null,null,"abrakadabra",null,"abrakadabra"]
[null,null,null,null,null,null,null,null,null,null,null,null,null,null,null,null,null,null,null,null,"abrakadabra",null,"abrakadabra"]
[null,null,null,null,null,null,null,null,null,null,null,null,null,null,null,null,null,null,null,null,"abrakadabra",null,"abrakadabra"]
[null,null,null,null,null,null,null,null,null,null,null,null,null,null,null,null,null,null,null,null,"abrakadabra",null,"abrakadabra"]
[null,null,null,null,null,null,null,null,null,null,null,null,null,null,null,null,null,null,null,null,"abrakadabra",null,"abrakadabra"]
[null,null,null,null,null,null,null,null,null,null,null,null,null,null,null,null,null,null,null,null,"abrakadabra",null,"abrakadabra"]
[null,null,null,null,null,null,null,null,null,null,null,null,null,null,null,null,null,null,null,null,"abrakadabra",null,"abrakadabra"]
[null,null,null,null,null,null,null,null,null,null,null,null,null,null,null,null,null,null,null,null,"abrakadabra",null,"abrakadabra"]
[null,null,null,null,null,null,null,null,null,null,null,null,null,null,null,null,null,null,null,null,"abrakadabra",null,"abrakadabra"]
[null,null,null,null,null,null,null,null,null,null,null,null,null,null,null,null,null,null,null,null,"abrakadabra",null,"abrakadabra"]
[null,null,null,null,null,null,null,null,null,null,null,null,null,null,null,null,null,null,null,null,"abrakadabra",null,"abrakadabra"]
[null,null,null,null,null,null,null,null,null,null,null,null,null,null,null,null,null,null,null,null,"abrakadabra",null,"abrakadabra"]
[null,null,null,null,null,null,null,null,null,null,null,null,null,null,null,null,null,null,null,null,"abrakadabra",null,"abrakadabra"]
[null,null,null,null,null,null,null,null,null,null,null,null,null,null,null,null,null,null,null,null,"abrakadabra",null,"abrakadabra"]
[null,null,null,null,null,null,null,null,null,null,null,null,null,null,null,null,null,null,null,null,"abrakadabra",null,"abrakadabra"]
[null,null,null,null,null,null,null,null,null,null,null,null,null,null,null,null,null,null,null,null,"abrakadabra",null,"abrakadabra"]
[null,null,null,null,null,null,null,null,null,null,null,null,null,null,null,null,null,null,null,null,"abrakadabra",null,"abrakadabra"]
[null,null,null,null,null,null,null,null,null,null,null,null,null,null,null,null,null,null,null,null,"abrakadabra",null,"abrakadabra"]
[null,null,null,null,null,null,null,null,null,null,null,null,null,null,null,null,null,null,null,null,"abrakadabra",null,"abrakadabra"]
[null,null,null,null,null,null,null,null,null,null,null,null,null,null,null,null,null,null,null,null,"abrakadabra",null,"abrakadabra"]
[null,null,null,null,null,null,null,null,null,null,null,null,null,null,null,null,null,null,null,null,"abrakadabra",null,"abrakadabra"]
[null,null,null,null,null,null,null,null,null,null,null,null,null,null,null,null,null,null,null,null,"abrakadabra",null,"abrakadabra"]
[null,null,null,null,null,null,null,null,null,null,null,null,null,null,null,null,null,null,null,null,"abrakadabra",null,"abrakadabra"]
[null,null,null,null,null,null,null,null,null,null,null,null,null,null,null,null,null,null,null,null,"abrakadabra",null,"abrakadabra"]
[null,null,null,null,null,null,null,null,null,null,null,null,null,null,null,null,null,null,null,null,"abrakadabra",null,"abrakadabra"]
[null,null,null,null,null,null,null,null,null,null,null,null,null,null,null,null,null,null,null,null,"abrakadabra",null,"abrakadabra"]
[null,null,null,null,null,null,null,null,null,null,null,null,null,null,null,null,null,null,null,null,"abrakadabra",null,"abrakadabra"]
[null,null,null,null,null,null,null,null,null,null,null,null,null,null,null,null,null,null,null,null,"abrakadabra",null,"abrakadabra"]
[null,null,null,null,null,null,null,null,null,null,null,null,null,null,null,null,null,null,null,null,"abrakadabra",null,"abrakadabra"]
[null,null,null,null,null,null,null,null,null,null,null,null,null,null,null,null,null,null,null,null,"abrakadabra",null,"abrakadabra"]
[null,null,null,null,null,null,null,null,null,null,null,null,null,null,null,null,null,null,null,null,"abrakadabra",null,"abrakadabra"]
[null,null,null,null,null,null,null,null,null,null,null,null,null,null,null,null,null,null,null,null,"abrakadabra",null,"abrakadabra"]
[null,null,null,null,null,null,null,null,null,null,null,null,null,null,null,null,null,null,null,null,"abrakadabra",null,"abrakadabra"]
[null,null,null,null,null,null,null,null,null,null,null,null,null,null,null,null,null,null,null,null,"abrakadabra",null,"abrakadabra"]
[null,null,null,null,null,null,null,null,null,null,null,null,null,null,null,null,null,null,null,null,"abrakadabra",null,"abrakadabra"]
[null,null,null,null,null,null,null,null,null,null,null,null,null,null,null,null,null,null,null,null,"abrakadabra",null,"abrakadabra"]
[null,null,null,null,null,null,null,null,null,null,null,null,null,null,null,null,null,null,null,null,"abrakadabra",null,"abrakadabra"]
[null,null,null,null,null,null,null,null,null,null,null,null,null,null,null,null,null,null,null,null,"abrakadabra",null,"abrakadabra"]
[null,null,null,null,null,null,null,null,null,null,null,null,null,null,null,null,null,null,null,null,"abrakadabra",null,"abrakadabra"]
[null,null,null,null,null,null,null,null,null,null,null,null,null,null,null,null,null,null,null,null,"abrakadabra",null,"abrakadabra"]
[null,null,null,null,null,null,null,null,null,null,null,null,null,null,null,null,null,null,null,null,"abrakadabra",null,"abrakadabra"]
[null,null,null,null,null,null,null,null,null,null,null,null,null,null,null,null,null,null,null,null,"abrakadabra",null,"abrakadabra"]
[null,null,null,null,null,null,null,null,null,null,null,null,null,null,null,null,null,null,null,null,"abrakadabra",null,"abrakadabra"]
[null,null,null,null,null,null,null,null,null,null,null,null,null,null,null,null,null,null,null,null,"abrakadabra",null,"abrakadabra"]
[null,null,null,null,null,null,null,null,null,null,null,null,null,null,null,null,null,null,null,null,"abrakadabra",null,"abrakadabra"]
[null,null,null,null,null,null,null,null,null,null,null,null,null,null,null,null,null,null,null,null,"abrakadabra",null,"abrakadabra"]
[null,null,null,null,null,null,null,null,null,null,null,null,null,null,null,null,null,null,null,null,"abrakadabra",null,"abrakadabra"]
[null,null,null,null,null,null,null,null,null,null,null,null,null,null,null,null,null,null,null,null,"abrakadabra",null,"abrakadabra"]
[null,null,null,null,null,null,null,null,null,null,null,null,null,null,null,null,null,null,null,null,"abrakadabra",null,"abrakadabra"]
[null,null,null,null,null,null,null,null,null,null,null,null,null,null,null,null,null,null,null,null,"abrakadabra",null,"abrakadabra"]
[null,null,null,null,null,null,null,null,null,null,null,null,null,null,null,null,null,null,null,null,"abrakadabra",null,"abrakadabra"]
[null,null,null,null,null,null,null,null,null,null,null,null,null,null,null,null,null,null,null,null,"abrakadabra",null,"abrakadabra"]
[null,null,null,null,null,null,null,null,null,null,null,null,null,null,null,null,null,null,null,null,"abrakadabra",null,"abrakadabra"]
[null,null,null,null,null,null,null,null,null,null,null,null,null,null,null,null,null,null,null,null,"abrakadabra",null,"abrakadabra"]
[null,null,null,null,null,null,null,null,null,null,null,null,null,null,null,null,null,null,null,null,"abrakadabra",null,"abrakadabra"]
[null,null,null,null,null,null,null,null,null,null,null,null,null,null,null,null,null,null,null,null,"abrakadabra",null,"abrakadabra"]
[null,null,null,null,null,null,null,null,null,null,null,null,null,null,null,null,null,null,null,null,"abrakadabra",null,"abrakadabra"]
[null,null,null,null,null,null,null,null,null,null,null,null,null,null,null,null,null,null,null,null,"abrakadabra",null,"abrakadabra"]
[null,null,null,null,null,null,null,null,null,null,null,null,null,null,null,null,null,null,null,null,"abrakadabra",null,"abrakadabra"]
[null,null,null,null,null,null,null,null,null,null,null,null,null,null,null,null,null,null,null,null,"abrakadabra",null,"abrakadabra"]
[null,null,null,null,null,null,null,null,null,null,null,null,null,null,null,null,null,null,null,null,"abrakadabra",null,"abrakadabra"]
[null,null,null,null,null,null,null,null,null,null,null,null,null,null,null,null,null,null,null,null,"abrakadabra",null,"abrakadabra"]
[null,null,null,null,null,null,null,null,null,null,null,null,null,null,null,null,null,null,null,null,"abrakadabra",null,"abrakadabra"]
[null,null,null,null,null,null,null,null,null,null,null,null,null,null,null,null,null,null,null,null,"abrakadabra",null,"abrakadabra"]
[null,null,null,null,null,null,null,null,null,null,null,null,null,null,null,null,null,null,null,null,"abrakadabra",null,"abrakadabra"]
[null,null,null,null,null,null,null,null,null,null,null,null,null,null,null,null,null,null,null,null,"abrakadabra",null,"abrakadabra"]
[null,null,null,null,null,null,null,null,null,null,null,null,null,null,null,null,null,null,null,null,"abrakadabra",null,"abrakadabra"]
[null,null,null,null,null,null,null,null,null,null,null,null,null,null,null,null,null,null,null,null,"abrakadabra",null,"abrakadabra"]
[null,null,null,null,null,null,null,null,null,null,null,null,null,null,null,null,null,null,null,null,"abrakadabra",null,"abrakadabra"]
[null,null,null,null,null,null,null,null,null,null,null,null,null,null,null,null,null,null,null,null,"abrakadabra",null,"abrakadabra"]
[null,null,null,null,null,null,null,null,null,null,null,null,null,null,null,null,null,null,null,null,"abrakadabra",null,"abrakadabra"]
[null,null,null,null,null,null,null,null,null,null,null,null,null,null,null,null,null,null,null,null,"abrakadabra",null,"abrakadabra"]
[null,null,null,null,null,null,null,null,null,null,null,null,null,null,null,null,null,null,null,null,"abrakadabra",null,"abrakadabra"]
[null,null,null,null,null,null,null,null,null,null,null,null,null,null,null,null,null,null,null,null,"abrakadabra",null,"abrakadabra"]
[null,null,null,null,null,null,null,null,null,null,null,null,null,null,null,null,null,null,null,null,"abrakadabra",null,"abrakadabra"]
[null,null,null,null,null,null,null,null,null,null,null,null,null,null,null,null,null,null,null,null,"abrakadabra",null,"abrakadabra"]
[null,null,null,null,null,null,null,null,null,null,null,null,null,null,null,null,null,null,null,null,"abrakadabra",null,"abrakadabra"]
[null,null,null,null,null,null,null,null,null,null,null,null,null,null,null,null,null,null,null,null,"abrakadabra",null,"abrakadabra"]
[null,null,null,null,null,null,null,null,null,null,null,null,null,null,null,null,null,null,null,null,"abrakadabra",null,"abrakadabra"]
[null,null,null,null,null,null,null,null,null,null,null,null,null,null,null,null,null,null,null,null,"abrakadabra",null,"abrakadabra"]
[null,null,null,null,null,null,null,null,null,null,null,null,null,null,null,null,null,null,null,null,"abrakadabra",null,"abrakadabra"]
[null,null,null,null,null,null,null,null,null,null,null,null,null,null,null,null,null,null,null,null,"abrakadabra",null,"abrakadabra"]
[null,null,null,null,null,null,null,null,null,null,null,null,null,null,null,null,null,null,null,null,"abrakadabra",null,"abrakadabra"]
[null,null,null,null,null,null,null,null,null,null,null,null,null,null,null,null,null,null,null,null,"abrakadabra",null,"abrakadabra"]
[null,null,null,null,null,null,null,null,null,null,null,null,null,null,null,null,null,null,null,null,"abrakadabra",null,"abrakadabra"]
[null,null,null,null,null,null,null,null,null,null,null,null,null,null,null,null,null,null,null,null,"abrakadabra",null,"abrakadabra"]
[null,null,null,null,null,null,null,null,null,null,null,null,null,null,null,null,null,null,null,null,"abrakadabra",null,"abrakadabra"]
[null,null,null,null,null,null,null,null,null,null,null,null,null,null,null,null,null,null,null,null,"abrakadabra",null,"abrakadabra"]
[null,null,null,null,null,null,null,null,null,null,null,null,null,null,null,null,null,null,null,null,"abrakadabra",null,"abrakadabra"]
[null,null,null,null,null,null,null,null,null,null,null,null,null,null,null,null,null,null,null,null,"abrakadabra",null,"abrakadabra"]
[null,null,null,null,null,null,null,null,null,null,null,null,null,null,null,null,null,null,null,null,"abrakadabra",null,"abrakadabra"]
[null,null,null,null,null,null,null,null,null,null,null,null,null,null,null,null,null,null,null,null,"abrakadabra",null,"abrakadabra"]
[null,null,null,null,null,null,null,null,null,null,null,null,null,null,null,null,null,null,null,null,"abrakadabra",null,"abrakadabra"]
[null,null,null,null,null,null,null,null,null,null,null,null,null,null,null,null,null,null,null,null,"abrakadabra",null,"abrakadabra"]
[null,null,null,null,null,null,null,null,null,null,null,null,null,null,null,null,null,null,null,null,"abrakadabra",null,"abrakadabra"]
[null,null,null,null,null,null,null,null,null,null,null,null,null,null,null,null,null,null,null,null,"abrakadabra",null,"abrakadabra"]
[null,null,null,null,null,null,null,null,null,null,null,null,null,null,null,null,null,null,null,null,"abrakadabra",null,"abrakadabra"]
[null,null,null,null,null,null,null,null,null,null,null,null,null,null,null,null,null,null,null,null,"abrakadabra",null,"abrakadabra"]
[null,null,null,null,null,null,null,null,null,null,null,null,null,null,null,null,null,null,null,null,"abrakadabra",null,"abrakadabra"]
[null,null,null,null,null,null,null,null,null,null,null,null,null,null,null,null,null,null,null,null,"abrakadabra",null,"abrakadabra"]
[null,null,null,null,null,null,null,null,null,null,null,null,null,null,null,null,null,null,null,null,"abrakadabra",null,"abrakadabra"]
[null,null,null,null,null,null,null,null,null,null,null,null,null,null,null,null,null,null,null,null,"abrakadabra",null,"abrakadabra"]
[null,null,null,null,null,null,null,null,null,null,null,null,null,null,null,null,null,null,null,null,"abrakadabra",null,"abrakadabra"]
[null,null,null,null,null,null,null,null,null,null,null,null,null,null,null,null,null,null,null,null,"abrakadabra",null,"abrakadabra"]
[null,null,null,null,null,null,null,null,null,null,null,null,null,null,null,null,null,null,null,null,"abrakadabra",null,"abrakadabra"]
[null,null,null,null,null,null,null,null,null,null,null,null,null,null,null,null,null,null,null,null,"abrakadabra",null,"abrakadabra"]
[null,null,null,null,null,null,null,null,null,null,null,null,null,null,null,null,null,null,null,null,"abrakadabra",null,"abrakadabra"]
[null,null,null,null,null,null,null,null,null,null,null,null,null,null,null,null,null,null,null,null,"abrakadabra",null,"abrakadabra"]
[null,null,null,null,null,null,null,null,null,null,null,null,null,null,null,null,null,null,null,null,"abrakadabra",null,"abrakadabra"]
[null,null,null,null,null,null,null,null,null,null,null,null,null,null,null,null,null,null,null,null,"abrakadabra",null,"abrakadabra"]
[null,null,null,null,null,null,null,null,null,null,null,null,null,null,null,null,null,null,null,null,"abrakadabra",null,"abrakadabra"]
[null,null,null,null,null,null,null,null,null,null,null,null,null,null,null,null,null,null,null,null,"abrakadabra",null,"abrakadabra"]
[null,null,null,null,null,null,null,null,null,null,null,null,null,null,null,null,null,null,null,null,"abrakadabra",null,"abrakadabra"]
[null,null,null,null,null,null,null,null,null,null,null,null,null,null,null,null,null,null,null,null,"abrakadabra",null,"abrakadabra"]
[null,null,null,null,null,null,null,null,null,null,null,null,null,null,null,null,null,null,null,null,"abrakadabra",null,"abrakadabra"]
[null,null,null,null,null,null,null,null,null,null,null,null,null,null,null,null,null,null,null,null,"abrakadabra",null,"abrakadabra"]
[null,null,null,null,null,null,null,null,null,null,null,null,null,null,null,null,null,null,null,null,"abrakadabra",null,"abrakadabra"]
[null,null,null,null,null,null,null,null,null,null,null,null,null,null,null,null,null,null,null,null,"abrakadabra",null,"abrakadabra"]
[null,null,null,null,null,null,null,null,null,null,null,null,null,null,null,null,null,null,null,null,"abrakadabra",null,"abrakadabra"]
[null,null,null,null,null,null,null,null,null,null,null,null,null,null,null,null,null,null,null,null,"abrakadabra",null,"abrakadabra"]
[null,null,null,null,null,null,null,null,null,null,null,null,null,null,null,null,null,null,null,null,"abrakadabra",null,"abrakadabra"]
[null,null,null,null,null,null,null,null,null,null,null,null,null,null,null,null,null,null,null,null,"abrakadabra",null,"abrakadabra"]
[null,null,null,null,null,null,null,null,null,null,null,null,null,null,null,null,null,null,null,null,"abrakadabra",null,"abrakadabra"]
[null,null,null,null,null,null,null,null,null,null,null,null,null,null,null,null,null,null,null,null,"abrakadabra",null,"abrakadabra"]
[null,null,null,null,null,null,null,null,null,null,null,null,null,null,null,null,null,null,null,null,"abrakadabra",null,"abrakadabra"]
[null,null,null,null,null,null,null,null,null,null,null,null,null,null,null,null,null,null,null,null,"abrakadabra",null,"abrakadabra"]
[null,null,null,null,null,null,null,null,null,null,null,null,null,null,null,null,null,null,null,null,"abrakadabra",null,"abrakadabra"]
[null,null,null,null,null,null,null,null,null,null,null,null,null,null,null,null,null,null,null,null,"abrakadabra",null,"abrakadabra"]
[null,null,null,null,null,null,null,null,null,null,null,null,null,null,null,null,null,null,null,null,"abrakadabra",null,"abrakadabra"]
[null,null,null,null,null,null,null,null,null,null,null,null,null,null,null,null,null,null,null,null,"abrakadabra",null,"abrakadabra"]
[null,null,null,null,null,null,null,null,null,null,null,null,null,null,null,null,null,null,null,null,"abrakadabra",null,"abrakadabra"]
[null,null,null,null,null,null,null,null,null,null,null,null,null,null,null,null,null,null,null,null,"abrakadabra",null,"abrakadabra"]
[null,null,null,null,null,null,null,null,null,null,null,null,null,null,null,null,null,null,null,null,"abrakadabra",null,"abrakadabra"]
[null,null,null,null,null,null,null,null,null,null,null,null,null,null,null,null,null,null,null,null,"abrakadabra",null,"abrakadabra"]
[null,null,null,null,null,null,null,null,null,null,null,null,null,null,null,null,null,null,null,null,"abrakadabra",null,"abrakadabra"]
[null,null,null,null,null,null,null,null,null,null,null,null,null,null,null,null,null,null,null,null,"abrakadabra",null,"abrakadabra"]
[null,null,null,null,null,null,null,null,null,null,null,null,null,null,null,null,null,null,null,null,"abrakadabra",null,"abrakadabra"]
[null,null,null,null,null,null,null,null,null,null,null,null,null,null,null,null,null,null,null,null,"abrakadabra",null,"abrakadabra"]
[null,null,null,null,null,null,null,null,null,null,null,null,null,null,null,null,null,null,null,null,"abrakadabra",null,"abrakadabra"]
[null,null,null,null,null,null,null,null,null,null,null,null,null,null,null,null,null,null,null,null,"abrakadabra",null,"abrakadabra"]
[null,null,null,null,null,null,null,null,null,null,null,null,null,null,null,null,null,null,null,null,"abrakadabra",null,"abrakadabra"]
[null,null,null,null,null,null,null,null,null,null,null,null,null,null,null,null,null,null,null,null,"abrakadabra",null,"abrakadabra"]
[null,null,null,null,null,null,null,null,null,null,null,null,null,null,null,null,null,null,null,null,"abrakadabra",null,"abrakadabra"]
[null,null,null,null,null,null,null,null,null,null,null,null,null,null,null,null,null,null,null,null,"abrakadabra",null,"abrakadabra"]
[null,null,null,null,null,null,null,null,null,null,null,null,null,null,null,null,null,null,null,null,"abrakadabra",null,"abrakadabra"]
[null,null,null,null,null,null,null,null,null,null,null,null,null,null,null,null,null,null,null,null,"abrakadabra",null,"abrakadabra"]
[null,null,null,null,null,null,null,null,null,null,null,null,null,null,null,null,null,null,null,null,"abrakadabra",null,"abrakadabra"]
[null,null,null,null,null,null,null,null,null,null,null,null,null,null,null,null,null,null,null,null,"abrakadabra",null,"abrakadabra"]
[null,null,null,null,null,null,null,null,null,null,null,null,null,null,null,null,null,null,null,null,"abrakadabra",null,"abrakadabra"]
[null,null,null,null,null,null,null,null,null,null,null,null,null,null,null,null,null,null,null,null,"abrakadabra",null,"abrakadabra"]
[null,null,null,null,null,null,null,null,null,null,null,null,null,null,null,null,null,null,null,null,"abrakadabra",null,"abrakadabra"]
[null,null,null,null,null,null,null,null,null,null,null,null,null,null,null,null,null,null,null,null,"abrakadabra",null,"abrakadabra"]
[null,null,null,null,null,null,null,null,null,null,null,null,null,null,null,null,null,null,null,null,"abrakadabra",null,"abrakadabra"]
[null,null,null,null,null,null,null,null,null,null,null,null,null,null,null,null,null,null,null,null,"abrakadabra",null,"abrakadabra"]
[null,null,null,null,null,null,null,null,null,null,null,null,null,null,null,null,null,null,null,null,"abrakadabra",null,"abrakadabra"]
[null,null,null,null,null,null,null,null,null,null,null,null,null,null,null,null,null,null,null,null,"abrakadabra",null,"abrakadabra"]
[null,null,null,null,null,null,null,null,null,null,null,null,null,null,null,null,null,null,null,null,"abrakadabra",null,"abrakadabra"]
[null,null,null,null,null,null,null,null,null,null,null,null,null,null,null,null,null,null,null,null,"abrakadabra",null,"abrakadabra"]
[null,null,null,null,null,null,null,null,null,null,null,null,null,null,null,null,null,null,null,null,"abrakadabra",null,"abrakadabra"]
[null,null,null,null,null,null,null,null,null,null,null,null,null,null,null,null,null,null,null,null,"abrakadabra",null,"abrakadabra"]
[null,null,null,null,null,null,null,null,null,null,null,null,null,null,null,null,null,null,null,null,"abrakadabra",null,"abrakadabra"]
[null,null,null,null,null,null,null,null,null,null,null,null,null,null,null,null,null,null,null,null,"abrakadabra",null,"abrakadabra"]
[null,null,null,null,null,null,null,null,null,null,null,null,null,null,null,null,null,null,null,null,"abrakadabra",null,"abrakadabra"]
[null,null,null,null,null,null,null,null,null,null,null,null,null,null,null,null,null,null,null,null,"abrakadabra",null,"abrakadabra"]
[null,null,null,null,null,null,null,null,null,null,null,null,null,null,null,null,null,null,null,null,"abrakadabra",null,"abrakadabra"]
[null,null,null,null,null,null,null,null,null,null,null,null,null,null,null,null,null,null,null,null,"abrakadabra",null,"abrakadabra"]
[null,null,null,null,null,null,null,null,null,null,null,null,null,null,null,null,null,null,null,null,"abrakadabra",null,"abrakadabra"]
[null,null,null,null,null,null,null,null,null,null,null,null,null,null,null,null,null,null,null,null,"abrakadabra",null,"abrakadabra"]
[null,null,null,null,null,null,null,null,null,null,null,null,null,null,null,null,null,null,null,null,"abrakadabra",null,"abrakadabra"]
[null,null,null,null,null,null,null,null,null,null,null,null,null,null,null,null,null,null,null,null,"abrakadabra",null,"abrakadabra"]
[null,null,null,null,null,null,null,null,null,null,null,null,null,null,null,null,null,null,null,null,"abrakadabra",null,"abrakadabra"]
[null,null,null,null,null,null,null,null,null,null,null,null,null,null,null,null,null,null,null,null,"abrakadabra",null,"abrakadabra"]
[null,null,null,null,null,null,null,null,null,null,null,null,null,null,null,null,null,null,null,null,"abrakadabra",null,"abrakadabra"]
[null,null,null,null,null,null,null,null,null,null,null,null,null,null,null,null,null,null,null,null,"abrakadabra",null,"abrakadabra"]
[null,null,null,null,null,null,null,null,null,null,null,null,null,null,null,null,null,null,null,null,"abrakadabra",null,"abrakadabra"]
[null,null,null,null,null,null,null,null,null,null,null,null,null,null,null,null,null,null,null,null,"abrakadabra",null,"abrakadabra"]
[null,null,null,null,null,null,null,null,null,null,null,null,null,null,null,null,null,null,null,null,"abrakadabra",null,"abrakadabra"]
[null,null,null,null,null,null,null,null,null,null,null,null,null,null,null,null,null,null,null,null,"abrakadabra",null,"abrakadabra"]
[null,null,null,null,null,null,null,null,null,null,null,null,null,null,null,null,null,null,null,null,"abrakadabra",null,"abrakadabra"]
[null,null,null,null,null,null,null,null,null,null,null,null,null,null,null,null,null,null,null,null,"abrakadabra",null,"abrakadabra"]
[null,null,null,null,null,null,null,null,null,null,null,null,null,null,null,null,null,null,null,null,"abrakadabra",null,"abrakadabra"]
[null,null,null,null,null,null,null,null,null,null,null,null,null,null,null,null,null,null,null,null,"abrakadabra",null,"abrakadabra"]
[null,null,null,null,null,null,null,null,null,null,null,null,null,null,null,null,null,null,null,null,"abrakadabra",null,"abrakadabra"]
[null,null,null,null,null,null,null,null,null,null,null,null,null,null,null,null,null,null,null,null,"abrakadabra",null,"abrakadabra"]
[null,null,null,null,null,null,null,null,null,null,null,null,null,null,null,null,null,null,null,null,"abrakadabra",null,"abrakadabra"]
[null,null,null,null,null,null,null,null,null,null,null,null,null,null,null,null,null,null,null,null,"abrakadabra",null,"abrakadabra"]
[null,null,null,null,null,null,null,null,null,null,null,null,null,null,null,null,null,null,null,null,"abrakadabra",null,"abrakadabra"]
[null,null,null,null,null,null,null,null,null,null,null,null,null,null,null,null,null,null,null,null,"abrakadabra",null,"abrakadabra"]
[null,null,null,null,null,null,null,null,null,null,null,null,null,null,null,null,null,null,null,null,"abrakadabra",null,"abrakadabra"]
[null,null,null,null,null,null,null,null,null,null,null,null,null,null,null,null,null,null,null,null,"abrakadabra",null,"abrakadabra"]
[null,null,null,null,null,null,null,null,null,null,null,null,null,null,null,null,null,null,null,null,"abrakadabra",null,"abrakadabra"]
[null,null,null,null,null,null,null,null,null,null,null,null,null,null,null,null,null,null,null,null,"abrakadabra",null,"abrakadabra"]
[null,null,null,null,null,null,null,null,null,null,null,null,null,null,null,null,null,null,null,null,"abrakadabra",null,"abrakadabra"]
[null,null,null,null,null,null,null,null,null,null,null,null,null,null,null,null,null,null,null,null,"abrakadabra",null,"abrakadabra"]
[null,null,null,null,null,null,null,null,null,null,null,null,null,null,null,null,null,null,null,null,"abrakadabra",null,"abrakadabra"]
[null,null,null,null,null,null,null,null,null,null,null,null,null,null,null,null,null,null,null,null,"abrakadabra",null,"abrakadabra"]
[null,null,null,null,null,null,null,null,null,null,null,null,null,null,null,null,null,null,null,null,"abrakadabra",null,"abrakadabra"]
[null,null,null,null,null,null,null,null,null,null,null,null,null,null,null,null,null,null,null,null,"abrakadabra",null,"abrakadabra"]
[null,null,null,null,null,null,null,null,null,null,null,null,null,null,null,null,null,null,null,null,"abrakadabra",null,"abrakadabra"]
[null,null,null,null,null,null,null,null,null,null,null,null,null,null,null,null,null,null,null,null,"abrakadabra",null,"abrakadabra"]
[null,null,null,null,null,null,null,null,null,null,null,null,null,null,null,null,null,null,null,null,"abrakadabra",null,"abrakadabra"]
[null,null,null,null,null,null,null,null,null,null,null,null,null,null,null,null,null,null,null,null,"abrakadabra",null,"abrakadabra"]
[null,null,null,null,null,null,null,null,null,null,null,null,null,null,null,null,null,null,null,null,"abrakadabra",null,"abrakadabra"]
[null,null,null,null,null,null,null,null,null,null,null,null,null,null,null,null,null,null,null,null,"abrakadabra",null,"abrakadabra"]
[null,null,null,null,null,null,null,null,null,null,null,null,null,null,null,null,null,null,null,null,"abrakadabra",null,"abrakadabra"]
[null,null,null,null,null,null,null,null,null,null,null,null,null,null,null,null,null,null,null,null,"abrakadabra",null,"abrakadabra"]
[null,null,null,null,null,null,null,null,null,null,null,null,null,null,null,null,null,null,null,null,"abrakadabra",null,"abrakadabra"]
[null,null,null,null,null,null,null,null,null,null,null,null,null,null,null,null,null,null,null,null,"abrakadabra",null,"abrakadabra"]
[null,null,null,null,null,null,null,null,null,null,null,null,null,null,null,null,null,null,null,null,"abrakadabra",null,"abrakadabra"]
[null,null,null,null,null,null,null,null,null,null,null,null,null,null,null,null,null,null,null,null,"abrakadabra",null,"abrakadabra"]
[null,null,null,null,null,null,null,null,null,null,null,null,null,null,null,null,null,null,null,null,"abrakadabra",null,"abrakadabra"]
[null,null,null,null,null,null,null,null,null,null,null,null,null,null,null,null,null,null,null,null,"abrakadabra",null,"abrakadabra"]
[null,null,null,null,null,null,null,null,null,null,null,null,null,null,null,null,null,null,null,null,"abrakadabra",null,"abrakadabra"]
[null,null,null,null,null,null,null,null,null,null,null,null,null,null,null,null,null,null,null,null,"abrakadabra",null,"abrakadabra"]
[null,null,null,null,null,null,null,null,null,null,null,null,null,null,null,null,null,null,null,null,"abrakadabra",null,"abrakadabra"]
[null,null,null,null,null,null,null,null,null,null,null,null,null,null,null,null,null,null,null,null,"abrakadabra",null,"abrakadabra"]
[null,null,null,null,null,null,null,null,null,null,null,null,null,null,null,null,null,null,null,null,"abrakadabra",null,"abrakadabra"]
[null,null,null,null,null,null,null,null,null,null,null,null,null,null,null,null,null,null,null,null,"abrakadabra",null,"abrakadabra"]
[null,null,null,null,null,null,null,null,null,null,null,null,null,null,null,null,null,null,null,null,"abrakadabra",null,"abrakadabra"]
[null,null,null,null,null,null,null,null,null,null,null,null,null,null,null,null,null,null,null,null,"abrakadabra",null,"abrakadabra"]
[null,null,null,null,null,null,null,null,null,null,null,null,null,null,null,null,null,null,null,null,"abrakadabra",null,"abrakadabra"]
[null,null,null,null,null,null,null,null,null,null,null,null,null,null,null,null,null,null,null,null,"abrakadabra",null,"abrakadabra"]
[null,null,null,null,null,null,null,null,null,null,null,null,null,null,null,null,null,null,null,null,"abrakadabra",null,"abrakadabra"]
[null,null,null,null,null,null,null,null,null,null,null,null,null,null,null,null,null,null,null,null,"abrakadabra",null,"abrakadabra"]
[null,null,null,null,null,null,null,null,null,null,null,null,null,null,null,null,null,null,null,null,"abrakadabra",null,"abrakadabra"]
[null,null,null,null,null,null,null,null,null,null,null,null,null,null,null,null,null,null,null,null,"abrakadabra",null,"abrakadabra"]
[null,null,null,null,null,null,null,null,null,null,null,null,null,null,null,null,null,null,null,null,"abrakadabra",null,"abrakadabra"]
[null,null,null,null,null,null,null,null,null,null,null,null,null,null,null,null,null,null,null,null,"abrakadabra",null,"abrakadabra"]
[null,null,null,null,null,null,null,null,null,null,null,null,null,null,null,null,null,null,null,null,"abrakadabra",null,"abrakadabra"]
[null,null,null,null,null,null,null,null,null,null,null,null,null,null,null,null,null,null,null,null,"abrakadabra",null,"abrakadabra"]
[null,null,null,null,null,null,null,null,null,null,null,null,null,null,null,null,null,null,null,null,"abrakadabra",null,"abrakadabra"]
[null,null,null,null,null,null,null,null,null,null,null,null,null,null,null,null,null,null,null,null,"abrakadabra",null,"abrakadabra"]
[null,null,null,null,null,null,null,null,null,null,null,null,null,null,null,null,null,null,null,null,"abrakadabra",null,"abrakadabra"]
[null,null,null,null,null,null,null,null,null,null,null,null,null,null,null,null,null,null,null,null,"abrakadabra",null,"abrakadabra"]
[null,null,null,null,null,null,null,null,null,null,null,null,null,null,null,null,null,null,null,null,"abrakadabra",null,"abrakadabra"]
[null,null,null,null,null,null,null,null,null,null,null,null,null,null,null,null,null,null,null,null,"abrakadabra",null,"abrakadabra"]
[null,null,null,null,null,null,null,null,null,null,null,null,null,null,null,null,null,null,null,null,"abrakadabra",null,"abrakadabra"]
[null,null,null,null,null,null,null,null,null,null,null,null,null,null,null,null,null,null,null,null,"abrakadabra",null,"abrakadabra"]
[null,null,null,null,null,null,null,null,null,null,null,null,null,null,null,null,null,null,null,null,"abrakadabra",null,"abrakadabra"]
[null,null,null,null,null,null,null,null,null,null,null,null,null,null,null,null,null,null,null,null,"abrakadabra",null,"abrakadabra"]
[null,null,null,null,null,null,null,null,null,null,null,null,null,null,null,null,null,null,null,null,"abrakadabra",null,"abrakadabra"]
[null,null,null,null,null,null,null,null,null,null,null,null,null,null,null,null,null,null,null,null,"abrakadabra",null,"abrakadabra"]
[null,null,null,null,null,null,null,null,null,null,null,null,null,null,null,null,null,null,null,null,"abrakadabra",null,"abrakadabra"]
[null,null,null,null,null,null,null,null,null,null,null,null,null,null,null,null,null,null,null,null,"abrakadabra",null,"abrakadabra"]
[null,null,null,null,null,null,null,null,null,null,null,null,null,null,null,null,null,null,null,null,"abrakadabra",null,"abrakadabra"]
[null,null,null,null,null,null,null,null,null,null,null,null,null,null,null,null,null,null,null,null,"abrakadabra",null,"abrakadabra"]
[null,null,null,null,null,null,null,null,null,null,null,null,null,null,null,null,null,null,null,null,"abrakadabra",null,"abrakadabra"]
[null,null,null,null,null,null,null,null,null,null,null,null,null,null,null,null,null,null,null,null,"abrakadabra",null,"abrakadabra"]
[null,null,null,null,null,null,null,null,null,null,null,null,null,null,null,null,null,null,null,null,"abrakadabra",null,"abrakadabra"]
[null,null,null,null,null,null,null,null,null,null,null,null,null,null,null,null,null,null,null,null,"abrakadabra",null,"abrakadabra"]
[null,null,null,null,null,null,null,null,null,null,null,null,null,null,null,null,null,null,null,null,"abrakadabra",null,"abrakadabra"]
[null,null,null,null,null,null,null,null,null,null,null,null,null,null,null,null,null,null,null,null,"abrakadabra",null,"abrakadabra"]
[null,null,null,null,null,null,null,null,null,null,null,null,null,null,null,null,null,null,null,null,"abrakadabra",null,"abrakadabra"]
[null,null,null,null,null,null,null,null,null,null,null,null,null,null,null,null,null,null,null,null,"abrakadabra",null,"abrakadabra"]

{"sheet":"Setup","index":3,"n_rows":24,"n_cols":23,"rows_kept":24,"cut":false,"hidden":true,"merged":[[23,3,24,6],[20,3,21,6],[12,0,12,1],[17,0,17,1],[18,0,18,1],[17,2,17,5],[18,2,18,5],[12,4,12,5],[12,2,12,3],[15,0,15,1],[16,0,16,1],[13,0,13,1],[14,0,14,1],[5,0,5,1],[11,0,11,1],[6,0,7,1],[11,2,11,3],[9,4,9,5],[10,0,10,1],[8,4,8,5],[11,4,11,5],[4,4,4,5],[9,0,9,1],[0,4,1,6],[10,4,10,5],[0,0,0,3],[1,0,1,1],[1,2,1,3],[3,0,3,2],[10,2,10,3],[4,2,4,3],[5,2,5,3],[8,2,8,3],[9,2,9,3],[4,0,4,1],[8,0,8,1],[5,4,5,5]]}
["Demo School, Demo Lane, Demo City",null,null,null,"Title for the Time Tables",null,null,null,null,null,null,"Subscription Type","Subscription",null,null,{"$f":"CONCATENATE(TEXT(TIME($C$8,$D$8,0),\"hh:mm AM/PM\"),\"-\",TEXT(TIME($C$8,$D$8+$C$9,0),\"hh:mm AM/PM\"))","v":"08:30 AM-09:10 AM"}]
[" Time Table ",null,"2022-2023",null,null,null,null,null,null,null,null,"Today","2023-09-27T10:21:07",null,null,{"$f":"TEXT(TIME($C$8,$D$8,0),\"hh:mm AM/PM\")","v":"08:30 AM"}]
[null,null,null,null,null,null,null,null,null,null,null,"Valid Till"]
["TimeTable Setup",null,null,null,null,null,null,null,null,null,null,"Code","20230927CertitudeInfotechTrialVersion4279282407",null,null,"Color"]
["Day",null,"Monday - Friday",null,"Saturday",null,null,null,null,null,null,"Server","Prod",null,null,"Black and White",null,null,null,null,"Class Template",null,"Teacher Template"]
["No of Periods",null,8,null,6,null,null,null,null,null,null,null,"2023-09-27T10:21:07",null,null,null,null,null,null,null,{"$f":"'Class Template'!C6","v":"CT"},null,{"$f":"'Teacher Template'!C6","v":"CT"}]
["Start Time",null,"Hour","Minute","Hour","Minute",null,null,null,null,null,null,null,null,null,null,null,null,null,null,{"$f":"'Class Template'!C7","v":"CT"},null,{"$f":"'Teacher Template'!C7","v":"CT"}]
[null,null,8,30,9,0,null,null,null,null,null,null,null,null,null,null,null,null,null,null,{"$f":"'Class Template'!C8","v":"Assembly"},null,{"$f":"'Teacher Template'!C8","v":"Assembly"}]
["Period Duration",null,40,null,40,null,null,null,null,null,null,null,null,null,null,null,null,null,null,null,{"$f":"'Class Template'!C9","v":"CT"},null,{"$f":"'Teacher Template'!C9","v":"CT"}]
["Break Duration",null,15,null,15,null,null,null,null,null,null,null,null,null,null,null,null,null,null,null,{"$f":"'Class Template'!C10","v":"Assembly"},null,{"$f":"'Teacher Template'!C10","v":"Assembly"}]
["Lunch Break Duration",null,35,null,30]
["1st Period Different?",null,"Yes",null,"No"]
["1st Period Duration",null,20,null,20]
["WkDay Period Different?",null,6,8,null,null,null,null,null,null,null,null,null,null,null,null,null,null,null,null,{"$f":"'Class Template'!C14","v":0},null,{"$f":"'Teacher Template'!C14","v":0}]
["Wkday Period Duration",null,35,45]
["Saturday Period Different?",null,4,5,6]
["Saturday Period Duration",null,35,35,35]
["Display Time Format",null,"08:30:00"]
["TimeTable Color",null,"Color"]
[]
[null,null,null,"Verify Setup once all changes have ben made to templates in accordance to the Setup."]
[]
[]
[null,null,null,"Please contact support to update details on Server before running this command."]

{"sheet":"CW Period Allotment Template","index":4,"n_rows":27,"n_cols":13,"rows_kept":27,"cut":false,"hidden":true,"merged":[[2,1,2,12],[3,1,3,4],[25,1,25,3],[26,1,26,3],[1,1,1,7],[1,8,1,12]]}
[]
[null,"CLASSWISE SUBJECTWISE PERIOD ALLOTMENT",null,null,null,null,null,null,{"$f":"IFERROR(MID(UPPER(MID(CELL(\"filename\",A1),FIND(\"]\",CELL(\"filename\",A1))+1,255)),FIND(\"(\",UPPER(MID(CELL(\"filename\",A1),FIND(\"]\",CELL(\"filename\",A1))+1,255))),FIND(\")\",UPPER(MID(CELL(\"filename\",A1),FIND(\"]\",CELL(\"filename\",A1))+1,255)))-FIND(\"(\",UPPER(MID(CELL(\"filename\",A1),FIND(\"]\",CELL(\"filename\",A1))+1,255)))+1),\"\")","v":""}]
[null,{"$f":"CONCATENATE(\"Std \",B6)","v":"Std "}]
[null,"No. of Periods",null,null,null,8,8,8,8,8,6,{"$f":"SUM(F4:K4)","v":46}]
[null,"Class","Subject","Teacher","Periods assigned per week","Monday","Tuesday","Wednesday","Thursday","Friday","Saturday","Total","Difference"]
[null,null,null,null,null,0,0,0,0,0,0,{"$f":"SUM(F6:K6)","v":0},{"$f":"E6-L6","v":0}]
[null,null,null,null,null,0,0,0,0,0,0,0,0]
[null,null,null,null,null,0,0,0,0,0,0,0,0]
[null,null,null,null,null,0,0,0,0,0,0,0,0]
[null,null,null,null,null,0,0,0,0,0,0,0,0]
[null,null,null,null,null,0,0,0,0,0,0,{"$f":"SUM(F11:K11)","v":0},{"$f":"E11-L11","v":0}]
[null,null,null,null,null,0,0,0,0,0,0,0,0]
[null,null,null,null,null,0,0,0,0,0,0,0,0]
[null,null,null,null,null,0,0,0,0,0,0,0,0]
[null,null,null,null,null,0,0,0,0,0,0,0,0]
[null,null,null,null,null,0,0,0,0,0,0,0,0]
[null,null,null,null,null,0,0,0,0,0,0,0,0]
[null,null,null,null,null,0,0,0,0,0,0,0,0]
[null,null,null,null,null,0,0,0,0,0,0,0,0]
[null,null,null,null,null,0,0,0,0,0,0,0,0]
[null,null,null,null,null,0,0,0,0,0,0,0,0]
[null,null,null,null,null,0,0,0,0,0,0,0,0]
[null,null,null,null,null,0,0,0,0,0,0,0,0]
[null,null,null,null,null,0,0,0,0,0,0,0,0]
[null,null,null,null,null,0,0,0,0,0,0,0,0]
[null,"Total",null,null,{"$f":"SUM(E6:E25)","v":0},0,0,0,0,0,0,0,0]
[null,"Difference",null,null,null,{"$f":"F26-F4","v":-8},-8,-8,-8,-8,-6]

{"sheet":"TW Period Allotment Template","index":5,"n_rows":3,"n_cols":10,"rows_kept":3,"cut":false,"hidden":true,"merged":[[0,0,0,6],[0,7,0,9]]}
["TEACHERWISE PERIOD ALLOTMENT",null,null,null,null,null,null,{"$f":"IFERROR(MID(MID(CELL(\"filename\",A1),FIND(\"]\",CELL(\"filename\",A1))+1,255),FIND(\"(\",MID(CELL(\"filename\",A1),FIND(\"]\",CELL(\"filename\",A1))+1,255))-1,FIND(\")\",MID(CELL(\"filename\",A1),FIND(\"]\",CELL(\"filename\",A1))+1,255))-FIND(\"(\",MID(CELL(\"filename\",A1),FIND(\"]\",CELL(\"filename\",A1))+1,255))+2),\"\")","v":""}]
["Teacher","No. Of Periods","Monday","Tuesday","Wednesday","Thursday","Friday","Saturday","Total","Difference"]
[null,{"$f":"IFERROR(SUMIF(INDIRECT(\"'CW Period Allotment\"&$H$1&\"'!$D:$D\"),$A3,INDIRECT(\"'CW Period Allotment\"&$H$1&\"'!$E:$E\")),0)","v":0},{"$f":"IFERROR(SUMIF(INDIRECT(\"'CW Period Allotment\"&$H$1&\"'!$D:$D\"),$A3,INDIRECT(\"'CW Period Allotment\"&$H$1&\"'!$F:$F\")),0)","v":0},{"$f":"IFERROR(SUMIF(INDIRECT(\"'CW Period Allotment\"&$H$1&\"'!$D:$D\"),$A3,INDIRECT(\"'CW Period Allotment\"&$H$1&\"'!$G:$G\")),0)","v":0},{"$f":"IFERROR(SUMIF(INDIRECT(\"'CW Period Allotment\"&$H$1&\"'!$D:$D\"),$A3,INDIRECT(\"'CW Period Allotment\"&$H$1&\"'!$H:$H\")),0)","v":0},{"$f":"IFERROR(SUMIF(INDIRECT(\"'CW Period Allotment\"&$H$1&\"'!$D:$D\"),$A3,INDIRECT(\"'CW Period Allotment\"&$H$1&\"'!$I:$I\")),0)","v":0},{"$f":"IFERROR(SUMIF(INDIRECT(\"'CW Period Allotment\"&$H$1&\"'!$D:$D\"),$A3,INDIRECT(\"'CW Period Allotment\"&$H$1&\"'!$J:$J\")),0)","v":0},{"$f":"IFERROR(SUMIF(INDIRECT(\"'CW Period Allotment\"&$H$1&\"'!$D:$D\"),$A3,INDIRECT(\"'CW Period Allotment\"&$H$1&\"'!$K:$K\")),0)","v":0},{"$f":"SUM(C3:H3)","v":0},{"$f":"B3-I3","v":0}]

{"sheet":"Staff Allocation","index":6,"n_rows":30,"n_cols":8,"rows_kept":30,"cut":false,"hidden":true,"merged":[[1,0,2,0],[5,0,5,5],[5,6,5,11]]}
[]
["Insert"]
[]
[]
[]
[{"$f":"CONCATENATE(UPPER(MID(CELL(\"filename\",A1),FIND(\"]\",CELL(\"filename\",A1))+1,255)),\" - \",Setup!$C$2)","v":"STAFF ALLOCATION - 2022-2023"},null,null,null,null,null,{"$f":"CONCATENATE(UPPER(MID(CELL(\"filename\",G1),FIND(\"]\",CELL(\"filename\",G1))+1,255)),\" - \",Setup!$C$2)","v":"STAFF ALLOCATION - 2022-2023"}]
["Class",null,null,null,null,null,"Class"]
["Class Name",null,null,null,null,null,"Class Name"]
["              Class Teacher\nSubject","No. of Periods",null,null,null,null,"              Class Teacher\nSubject","No. of Periods"]
[]
[]
[]
[]
[]
[]
[]
[]
[]
[]
[]
[]
[]
[]
[]
[]
[]
[]
[]
[]
[null,{"$f":"SUM(B10:B29)","v":0},null,null,null,null,null,{"$f":"SUM(H10:H29)","v":0}]

{"sheet":"Staff Allocation Template","index":7,"n_rows":30,"n_cols":2,"rows_kept":30,"cut":false,"hidden":true,"merged":[[1,0,2,0],[5,0,5,5]]}
[]
["Insert"]
[]
[]
[]
[{"$f":"CONCATENATE(UPPER(MID(CELL(\"filename\",A1),FIND(\"]\",CELL(\"filename\",A1))+1,255)),\" - \",Setup!$C$2)","v":"STAFF ALLOCATION TEMPLATE - 2022-2023"}]
["Class"]
["Class Name"]
["              Class Teacher\nSubject","No. of Periods"]
[]
[]
[]
[]
[]
[]
[]
[]
[]
[]
[]
[]
[]
[]
[]
[]
[]
[]
[]
[]
[null,{"$f":"SUM(B10:B29)","v":0}]

{"sheet":"Class Template","index":8,"n_rows":14,"n_cols":14,"rows_kept":14,"cut":false,"hidden":true,"merged":[[1,10,1,11],[1,4,1,9],[1,2,1,3],[1,12,1,13],[0,1,0,13]]}
[null,{"$f":" CONCATENATE(\"Std \",$C2)","v":"Std "}]
[null,"Class : ",null,null,{"$f":"CONCATENATE(Setup!$A$1,CHAR(10),Setup!$A$2,\" \",Setup!$C$2)","v":"Demo School, Demo Lane, Demo City\n Time Table  2022-2023"},null,null,null,null,null,"Class Teacher :"]
[null,"Timing",{"$f":"IF(Setup!$C$18=Setup!$P$1,CONCATENATE(TEXT(TIME(Setup!$C$8,Setup!$D$8,0),\"hh:mm AM/PM\"),\"- \",TEXT(TIME(Setup!$C$8,Setup!$D$8+VALUE(LEFT(C$4,2)),0),\"hh:mm AM/PM\")),TEXT(TIME(Setup!$C$8,Setup!$D$8,0),\"hh:mm AM/PM\"))","v":"08:30 AM"},{"$f":"IF(Setup!$C$18=Setup!$P$1,(CONCATENATE(TEXT(TIMEVALUE(RIGHT(C$3,8)),\"hh:mm AM/PM\"),\"- \",TEXT(TIMEVALUE(RIGHT(C$3,8)) + TIME(0,VALUE(LEFT(D$4,2)),0),\"hh:mm AM/PM\"))),TEXT(TIMEVALUE(C$3)+TIME(0,VALUE(LEFT(C$4,2)),0),\"hh:mm AM/PM\"))","v":"08:50 AM"},{"$f":"IF(Setup!$C$18=Setup!$P$1,(CONCATENATE(TEXT(TIMEVALUE(RIGHT(D$3,8)),\"hh:mm AM/PM\"),\"- \",TEXT(TIMEVALUE(RIGHT(D$3,8)) + TIME(0,VALUE(LEFT(E$4,2)),0),\"hh:mm AM/PM\"))),TEXT(TIMEVALUE(D$3)+TIME(0,VALUE(LEFT(D$4,2)),0),\"hh:mm AM/PM\"))","v":"09:30 AM"},{"$f":"IF(Setup!$C$18=Setup!$P$1,(CONCATENATE(TEXT(TIMEVALUE(RIGHT(E$3,8)),\"hh:mm AM/PM\"),\"- \",TEXT(TIMEVALUE(RIGHT(E$3,8)) + TIME(0,VALUE(LEFT(F$4,2)),0),\"hh:mm AM/PM\"))),TEXT(TIMEVALUE(E$3)+TIME(0,VALUE(LEFT(E$4,2)),0),\"hh:mm AM/PM\"))","v":"10:10 AM"},{"$f":"IF(Setup!$C$18=Setup!$P$1,(CONCATENATE(TEXT(TIMEVALUE(RIGHT(F$3,8)),\"hh:mm AM/PM\"),\"- \",TEXT(TIMEVALUE(RIGHT(F$3,8)) + TIME(0,VALUE(LEFT(G$4,2)),0),\"hh:mm AM/PM\"))),TEXT(TIMEVALUE(F$3)+TIME(0,VALUE(LEFT(F$4,2)),0),\"hh:mm AM/PM\"))","v":"10:25 AM"},{"$f":"IF(Setup!$C$18=Setup!$P$1,(CONCATENATE(TEXT(TIMEVALUE(RIGHT(G$3,8)),\"hh:mm AM/PM\"),\"- \",TEXT(TIMEVALUE(RIGHT(G$3,8)) + TIME(0,VALUE(LEFT(H$4,2)),0),\"hh:mm AM/PM\"))),TEXT(TIMEVALUE(G$3)+TIME(0,VALUE(LEFT(G$4,2)),0),\"hh:mm AM/PM\"))","v":"11:05 AM"},{"$f":"IF(Setup!$C$18=Setup!$P$1,(CONCATENATE(TEXT(TIMEVALUE(RIGHT(H$3,8)),\"hh:mm AM/PM\"),\"- \",TEXT(TIMEVALUE(RIGHT(H$3,8)) + TIME(0,VALUE(LEFT(I$4,2)),0),\"hh:mm AM/PM\"))),TEXT(TIMEVALUE(H$3)+TIME(0,VALUE(LEFT(H$4,2)),0),\"hh:mm AM/PM\"))","v":"11:45 AM"},{"$f":"IF(Setup!$C$18=Setup!$P$1,(CONCATENATE(TEXT(TIMEVALUE(RIGHT(I$3,8)),\"hh:mm AM/PM\"),\"- \",TEXT(TIMEVALUE(RIGHT(I$3,8)) + TIME(0,VALUE(LEFT(J$4,2)),0),\"hh:mm AM/PM\"))),TEXT(TIMEVALUE(I$3)+TIME(0,VALUE(LEFT(I$4,2)),0),\"hh:mm AM/PM\"))","v":"12:25 PM"},{"$f":"IF(Setup!$C$18=Setup!$P$1,(CONCATENATE(TEXT(TIMEVALUE(RIGHT(J$3,8)),\"hh:mm AM/PM\"),\"- \",TEXT(TIMEVALUE(RIGHT(J$3,8)) + TIME(0,VALUE(LEFT(K$4,2)),0),\"hh:mm AM/PM\"))),TEXT(TIMEVALUE(J$3)+TIME(0,VALUE(LEFT(J$4,2)),0),\"hh:mm AM/PM\"))","v":"01:00 PM"},{"$f":"IF(Setup!$C$18=Setup!$P$1,(CONCATENATE(TEXT(TIMEVALUE(RIGHT(K$3,8)),\"hh:mm AM/PM\"),\"- \",TEXT(TIMEVALUE(RIGHT(K$3,8)) + TIME(0,VALUE(LEFT(L$4,2)),0),\"hh:mm AM/PM\"))),TEXT(TIMEVALUE(K$3)+TIME(0,VALUE(LEFT(K$4,2)),0),\"hh:mm AM/PM\"))","v":"01:35 PM"},{"$f":"IF(Setup!$C$18=Setup!$P$1,(CONCATENATE(TEXT(TIMEVALUE(RIGHT(L$3,8)),\"hh:mm AM/PM\"),\"- \",TEXT(TIMEVALUE(RIGHT(L$3,8)) + TIME(0,VALUE(LEFT(M$4,2)),0),\"hh:mm AM/PM\"))),TEXT(TIMEVALUE(L$3)+TIME(0,VALUE(LEFT(L$4,2)),0),\"hh:mm AM/PM\"))","v":"02:15 PM"},{"$f":"IF(Setup!$C$18=Setup!$P$1,(CONCATENATE(TEXT(TIMEVALUE(RIGHT(M$3,8)),\"hh:mm AM/PM\"),\"- \",TEXT(TIMEVALUE(RIGHT(M$3,8)) + TIME(0,VALUE(LEFT(N$4,2)),0),\"hh:mm AM/PM\"))),TEXT(TIMEVALUE(M$3)+TIME(0,VALUE(LEFT(M$4,2)),0),\"hh:mm AM/PM\"))","v":"03:00 PM"}]
[null,"Duration",{"$f":"IFERROR(CONCATENATE(INDEX(Setup!$C$15:$F$15,MATCH(C$5,Setup!$C$14:$F$14,0)),\" mins\"),IF(C$5=\"\",\"00 mins\",IF(AND(ISNUMBER(C$5),C$5=0),CONCATENATE(IF(Setup!$C$12=\"Yes\",TEXT(Setup!$C$13,\"00\"),TEXT(Setup!$C$9,\"00\")),\" mins\"),IF(C$5=\"break\",CONCATENATE(TEXT(Setup!$C$10,\"00\"),\" mins\"),IF(ISNUMBER(C$5),CONCATENATE(TEXT(Setup!$C$9,\"00\"),\" mins\"),CONCATENATE(TEXT(Setup!$C$11,\"00\"),\" mins\"))))))","v":"20 mins"},{"$f":"IFERROR(CONCATENATE(INDEX(Setup!$C$15:$F$15,MATCH(D$5,Setup!$C$14:$F$14,0)),\" mins\"),IF(D$5=\"\",\"00 mins\",IF(AND(ISNUMBER(D$5),D$5=0),CONCATENATE(IF(Setup!$C$12=\"Yes\",TEXT(Setup!$C$13,\"00\"),TEXT(Setup!$C$9,\"00\")),\" mins\"),IF(D$5=\"break\",CONCATENATE(TEXT(Setup!$C$10,\"00\"),\" mins\"),IF(ISNUMBER(D$5),CONCATENATE(TEXT(Setup!$C$9,\"00\"),\" mins\"),CONCATENATE(TEXT(Setup!$C$11,\"00\"),\" mins\"))))))","v":"40 mins"},{"$f":"IFERROR(CONCATENATE(INDEX(Setup!$C$15:$F$15,MATCH(E$5,Setup!$C$14:$F$14,0)),\" mins\"),IF(E$5=\"\",\"00 mins\",IF(AND(ISNUMBER(E$5),E$5=0),CONCATENATE(IF(Setup!$C$12=\"Yes\",TEXT(Setup!$C$13,\"00\"),TEXT(Setup!$C$9,\"00\")),\" mins\"),IF(E$5=\"break\",CONCATENATE(TEXT(Setup!$C$10,\"00\"),\" mins\"),IF(ISNUMBER(E$5),CONCATENATE(TEXT(Setup!$C$9,\"00\"),\" mins\"),CONCATENATE(TEXT(Setup!$C$11,\"00\"),\" mins\"))))))","v":"40 mins"},{"$f":"IFERROR(CONCATENATE(INDEX(Setup!$C$15:$F$15,MATCH(F$5,Setup!$C$14:$F$14,0)),\" mins\"),IF(F$5=\"\",\"00 mins\",IF(AND(ISNUMBER(F$5),F$5=0),CONCATENATE(IF(Setup!$C$12=\"Yes\",TEXT(Setup!$C$13,\"00\"),TEXT(Setup!$C$9,\"00\")),\" mins\"),IF(F$5=\"break\",CONCATENATE(TEXT(Setup!$C$10,\"00\"),\" mins\"),IF(ISNUMBER(F$5),CONCATENATE(TEXT(Setup!$C$9,\"00\"),\" mins\"),CONCATENATE(TEXT(Setup!$C$11,\"00\"),\" mins\"))))))","v":"15 mins"},{"$f":"IFERROR(CONCATENATE(INDEX(Setup!$C$15:$F$15,MATCH(G$5,Setup!$C$14:$F$14,0)),\" mins\"),IF(G$5=\"\",\"00 mins\",IF(AND(ISNUMBER(G$5),G$5=0),CONCATENATE(IF(Setup!$C$12=\"Yes\",TEXT(Setup!$C$13,\"00\"),TEXT(Setup!$C$9,\"00\")),\" mins\"),IF(G$5=\"break\",CONCATENATE(TEXT(Setup!$C$10,\"00\"),\" mins\"),IF(ISNUMBER(G$5),CONCATENATE(TEXT(Setup!$C$9,\"00\"),\" mins\"),CONCATENATE(TEXT(Setup!$C$11,\"00\"),\" mins\"))))))","v":"40 mins"},{"$f":"IFERROR(CONCATENATE(INDEX(Setup!$C$15:$F$15,MATCH(H$5,Setup!$C$14:$F$14,0)),\" mins\"),IF(H$5=\"\",\"00 mins\",IF(AND(ISNUMBER(H$5),H$5=0),CONCATENATE(IF(Setup!$C$12=\"Yes\",TEXT(Setup!$C$13,\"00\"),TEXT(Setup!$C$9,\"00\")),\" mins\"),IF(H$5=\"break\",CONCATENATE(TEXT(Setup!$C$10,\"00\"),\" mins\"),IF(ISNUMBER(H$5),CONCATENATE(TEXT(Setup!$C$9,\"00\"),\" mins\"),CONCATENATE(TEXT(Setup!$C$11,\"00\"),\" mins\"))))))","v":"40 mins"},{"$f":"IFERROR(CONCATENATE(INDEX(Setup!$C$15:$F$15,MATCH(I$5,Setup!$C$14:$F$14,0)),\" mins\"),IF(I$5=\"\",\"00 mins\",IF(AND(ISNUMBER(I$5),I$5=0),CONCATENATE(IF(Setup!$C$12=\"Yes\",TEXT(Setup!$C$13,\"00\"),TEXT(Setup!$C$9,\"00\")),\" mins\"),IF(I$5=\"break\",CONCATENATE(TEXT(Setup!$C$10,\"00\"),\" mins\"),IF(ISNUMBER(I$5),CONCATENATE(TEXT(Setup!$C$9,\"00\"),\" mins\"),CONCATENATE(TEXT(Setup!$C$11,\"00\"),\" mins\"))))))","v":"40 mins"},{"$f":"IFERROR(CONCATENATE(INDEX(Setup!$C$15:$F$15,MATCH(J$5,Setup!$C$14:$F$14,0)),\" mins\"),IF(J$5=\"\",\"00 mins\",IF(AND(ISNUMBER(J$5),J$5=0),CONCATENATE(IF(Setup!$C$12=\"Yes\",TEXT(Setup!$C$13,\"00\"),TEXT(Setup!$C$9,\"00\")),\" mins\"),IF(J$5=\"break\",CONCATENATE(TEXT(Setup!$C$10,\"00\"),\" mins\"),IF(ISNUMBER(J$5),CONCATENATE(TEXT(Setup!$C$9,\"00\"),\" mins\"),CONCATENATE(TEXT(Setup!$C$11,\"00\"),\" mins\"))))))","v":"35 mins"},{"$f":"IFERROR(CONCATENATE(INDEX(Setup!$C$15:$F$15,MATCH(K$5,Setup!$C$14:$F$14,0)),\" mins\"),IF(K$5=\"\",\"00 mins\",IF(AND(ISNUMBER(K$5),K$5=0),CONCATENATE(IF(Setup!$C$12=\"Yes\",TEXT(Setup!$C$13,\"00\"),TEXT(Setup!$C$9,\"00\")),\" mins\"),IF(K$5=\"break\",CONCATENATE(TEXT(Setup!$C$10,\"00\"),\" mins\"),IF(ISNUMBER(K$5),CONCATENATE(TEXT(Setup!$C$9,\"00\"),\" mins\"),CONCATENATE(TEXT(Setup!$C$11,\"00\"),\" mins\"))))))","v":"35 mins"},{"$f":"IFERROR(CONCATENATE(INDEX(Setup!$C$15:$F$15,MATCH(L$5,Setup!$C$14:$F$14,0)),\" mins\"),IF(L$5=\"\",\"00 mins\",IF(AND(ISNUMBER(L$5),L$5=0),CONCATENATE(IF(Setup!$C$12=\"Yes\",TEXT(Setup!$C$13,\"00\"),TEXT(Setup!$C$9,\"00\")),\" mins\"),IF(L$5=\"break\",CONCATENATE(TEXT(Setup!$C$10,\"00\"),\" mins\"),IF(ISNUMBER(L$5),CONCATENATE(TEXT(Setup!$C$9,\"00\"),\" mins\"),CONCATENATE(TEXT(Setup!$C$11,\"00\"),\" mins\"))))))","v":"40 mins"},{"$f":"IFERROR(CONCATENATE(INDEX(Setup!$C$15:$F$15,MATCH(M$5,Setup!$C$14:$F$14,0)),\" mins\"),IF(M$5=\"\",\"00 mins\",IF(AND(ISNUMBER(M$5),M$5=0),CONCATENATE(IF(Setup!$C$12=\"Yes\",TEXT(Setup!$C$13,\"00\"),TEXT(Setup!$C$9,\"00\")),\" mins\"),IF(M$5=\"break\",CONCATENATE(TEXT(Setup!$C$10,\"00\"),\" mins\"),IF(ISNUMBER(M$5),CONCATENATE(TEXT(Setup!$C$9,\"00\"),\" mins\"),CONCATENATE(TEXT(Setup!$C$11,\"00\"),\" mins\"))))))","v":"45 mins"},{"$f":"IFERROR(CONCATENATE(INDEX(Setup!$C$15:$F$15,MATCH(N$5,Setup!$C$14:$F$14,0)),\" mins\"),IF(N$5=\"\",\"00 mins\",IF(AND(ISNUMBER(N$5),N$5=0),CONCATENATE(IF(Setup!$C$12=\"Yes\",TEXT(Setup!$C$13,\"00\"),TEXT(Setup!$C$9,\"00\")),\" mins\"),IF(N$5=\"break\",CONCATENATE(TEXT(Setup!$C$10,\"00\"),\" mins\"),IF(ISNUMBER(N$5),CONCATENATE(TEXT(Setup!$C$9,\"00\"),\" mins\"),CONCATENATE(TEXT(Setup!$C$11,\"00\"),\" mins\"))))))","v":"00 mins"}]
[null,"Period",{"$f":"IF(Setup!$C$12 = \"Yes\",0,1)","v":0},1,2,"Break",3,4,5,6,"Lunch Break",7,8]
[null,"Monday","CT"]
[null,"Tuesday","CT"]
[null,"Wednesday","Assembly",null,null,"Break",null,null,null,null,"Lunch Break"]
[null,"Thursday","CT"]
[null,"Friday","Assembly"]
[null,"Timing",{"$f":"IF(Setup!$C$18=Setup!$P$1,CONCATENATE(TEXT(TIME(Setup!$E$8,Setup!$F$8,0),\"hh:mm AM/PM\"),\"- \",TEXT(TIME(Setup!$E$8,Setup!$F$8+VALUE(LEFT(C$12,2)),0),\"hh:mm AM/PM\")),TEXT(TIME(Setup!$E$8,Setup!$F$8,0),\"hh:mm AM/PM\"))","v":"09:00 AM"},{"$f":"IF(Setup!$C$18=Setup!$P$1,(CONCATENATE(TEXT(TIMEVALUE(RIGHT(C$11,8)),\"hh:mm AM/PM\"),\"- \",TEXT(TIMEVALUE(RIGHT(C$11,8)) + TIME(0,VALUE(LEFT(D$12,2)),0),\"hh:mm AM/PM\"))),TEXT(TIMEVALUE(C$11)+TIME(0,VALUE(LEFT(C$12,2)),0),\"hh:mm AM/PM\"))","v":"09:40 AM"},{"$f":"IF(Setup!$C$18=Setup!$P$1,(CONCATENATE(TEXT(TIMEVALUE(RIGHT(D$11,8)),\"hh:mm AM/PM\"),\"- \",TEXT(TIMEVALUE(RIGHT(D$11,8)) + TIME(0,VALUE(LEFT(E$12,2)),0),\"hh:mm AM/PM\"))),TEXT(TIMEVALUE(D$11)+TIME(0,VALUE(LEFT(D$12,2)),0),\"hh:mm AM/PM\"))","v":"10:20 AM"},{"$f":"IF(Setup!$C$18=Setup!$P$1,(CONCATENATE(TEXT(TIMEVALUE(RIGHT(E$11,8)),\"hh:mm AM/PM\"),\"- \",TEXT(TIMEVALUE(RIGHT(E$11,8)) + TIME(0,VALUE(LEFT(F$12,2)),0),\"hh:mm AM/PM\"))),TEXT(TIMEVALUE(E$11)+TIME(0,VALUE(LEFT(E$12,2)),0),\"hh:mm AM/PM\"))","v":"11:00 AM"},{"$f":"IF(Setup!$C$18=Setup!$P$1,(CONCATENATE(TEXT(TIMEVALUE(RIGHT(F$11,8)),\"hh:mm AM/PM\"),\"- \",TEXT(TIMEVALUE(RIGHT(F$11,8)) + TIME(0,VALUE(LEFT(G$12,2)),0),\"hh:mm AM/PM\"))),TEXT(TIMEVALUE(F$11)+TIME(0,VALUE(LEFT(F$12,2)),0),\"hh:mm AM/PM\"))","v":"11:15 AM"},{"$f":"IF(Setup!$C$18=Setup!$P$1,(CONCATENATE(TEXT(TIMEVALUE(RIGHT(G$11,8)),\"hh:mm AM/PM\"),\"- \",TEXT(TIMEVALUE(RIGHT(G$11,8)) + TIME(0,VALUE(LEFT(H$12,2)),0),\"hh:mm AM/PM\"))),TEXT(TIMEVALUE(G$11)+TIME(0,VALUE(LEFT(G$12,2)),0),\"hh:mm AM/PM\"))","v":"11:50 AM"},{"$f":"IF(Setup!$C$18=Setup!$P$1,(CONCATENATE(TEXT(TIMEVALUE(RIGHT(H$11,8)),\"hh:mm AM/PM\"),\"- \",TEXT(TIMEVALUE(RIGHT(H$11,8)) + TIME(0,VALUE(LEFT(I$12,2)),0),\"hh:mm AM/PM\"))),TEXT(TIMEVALUE(H$11)+TIME(0,VALUE(LEFT(H$12,2)),0),\"hh:mm AM/PM\"))","v":"12:25 PM"},{"$f":"IF(Setup!$C$18=Setup!$P$1,(CONCATENATE(TEXT(TIMEVALUE(RIGHT(I$11,8)),\"hh:mm AM/PM\"),\"- \",TEXT(TIMEVALUE(RIGHT(I$11,8)) + TIME(0,VALUE(LEFT(J$12,2)),0),\"hh:mm AM/PM\"))),TEXT(TIMEVALUE(I$11)+TIME(0,VALUE(LEFT(I$12,2)),0),\"hh:mm AM/PM\"))","v":"01:00 PM"},{"$f":"IF(Setup!$C$18=Setup!$P$1,(CONCATENATE(TEXT(TIMEVALUE(RIGHT(J$11,8)),\"hh:mm AM/PM\"),\"- \",TEXT(TIMEVALUE(RIGHT(J$11,8)) + TIME(0,VALUE(LEFT(K$12,2)),0),\"hh:mm AM/PM\"))),TEXT(TIMEVALUE(J$11)+TIME(0,VALUE(LEFT(J$12,2)),0),\"hh:mm AM/PM\"))","v":"01:00 PM"},{"$f":"IF(Setup!$C$18=Setup!$P$1,(CONCATENATE(TEXT(TIMEVALUE(RIGHT(K$11,8)),\"hh:mm AM/PM\"),\"- \",TEXT(TIMEVALUE(RIGHT(K$11,8)) + TIME(0,VALUE(LEFT(L$12,2)),0),\"hh:mm AM/PM\"))),TEXT(TIMEVALUE(K$11)+TIME(0,VALUE(LEFT(K$12,2)),0),\"hh:mm AM/PM\"))","v":"01:00 PM"},{"$f":"IF(Setup!$C$18=Setup!$P$1,(CONCATENATE(TEXT(TIMEVALUE(RIGHT(L$11,8)),\"hh:mm AM/PM\"),\"- \",TEXT(TIMEVALUE(RIGHT(L$11,8)) + TIME(0,VALUE(LEFT(M$12,2)),0),\"hh:mm AM/PM\"))),TEXT(TIMEVALUE(L$11)+TIME(0,VALUE(LEFT(L$12,2)),0),\"hh:mm AM/PM\"))","v":"01:00 PM"},{"$f":"IF(Setup!$C$18=Setup!$P$1,(CONCATENATE(TEXT(TIMEVALUE(RIGHT(M$11,8)),\"hh:mm AM/PM\"),\"- \",TEXT(TIMEVALUE(RIGHT(M$11,8)) + TIME(0,VALUE(LEFT(N$12,2)),0),\"hh:mm AM/PM\"))),TEXT(TIMEVALUE(M$11)+TIME(0,VALUE(LEFT(M$12,2)),0),\"hh:mm AM/PM\"))","v":"01:00 PM"}]
[null,"Duration",{"$f":"IFERROR(CONCATENATE(INDEX(Setup!$C$17:$F$17,MATCH(C$13,Setup!$C$16:$F$16,0)),\" mins\"),IF(C$13=\"\",\"00 mins\",IF(AND(ISNUMBER(C$13),C$13=0),CONCATENATE(IF(Setup!$E$12=\"Yes\",TEXT(Setup!$E$13,\"00\"),TEXT(Setup!$E$9,\"00\")),\" mins\"),IF(C$5=\"break\",CONCATENATE(TEXT(Setup!$E$10,\"00\"),\" mins\"),IF(ISNUMBER(C$13),CONCATENATE(TEXT(Setup!$E$9,\"00\"),\" mins\"),CONCATENATE(TEXT(Setup!$E$11,\"00\"),\" mins\"))))))","v":"40 mins"},{"$f":"IFERROR(CONCATENATE(INDEX(Setup!$C$17:$F$17,MATCH(D$13,Setup!$C$16:$F$16,0)),\" mins\"),IF(D$13=\"\",\"00 mins\",IF(AND(ISNUMBER(D$13),D$13=0),CONCATENATE(IF(Setup!$E$12=\"Yes\",TEXT(Setup!$E$13,\"00\"),TEXT(Setup!$E$9,\"00\")),\" mins\"),IF(D$5=\"break\",CONCATENATE(TEXT(Setup!$E$10,\"00\"),\" mins\"),IF(ISNUMBER(D$13),CONCATENATE(TEXT(Setup!$E$9,\"00\"),\" mins\"),CONCATENATE(TEXT(Setup!$E$11,\"00\"),\" mins\"))))))","v":"40 mins"},{"$f":"IFERROR(CONCATENATE(INDEX(Setup!$C$17:$F$17,MATCH(E$13,Setup!$C$16:$F$16,0)),\" mins\"),IF(E$13=\"\",\"00 mins\",IF(AND(ISNUMBER(E$13),E$13=0),CONCATENATE(IF(Setup!$E$12=\"Yes\",TEXT(Setup!$E$13,\"00\"),TEXT(Setup!$E$9,\"00\")),\" mins\"),IF(E$5=\"break\",CONCATENATE(TEXT(Setup!$E$10,\"00\"),\" mins\"),IF(ISNUMBER(E$13),CONCATENATE(TEXT(Setup!$E$9,\"00\"),\" mins\"),CONCATENATE(TEXT(Setup!$E$11,\"00\"),\" mins\"))))))","v":"40 mins"},{"$f":"IFERROR(CONCATENATE(INDEX(Setup!$C$17:$F$17,MATCH(F$13,Setup!$C$16:$F$16,0)),\" mins\"),IF(F$13=\"\",\"00 mins\",IF(AND(ISNUMBER(F$13),F$13=0),CONCATENATE(IF(Setup!$E$12=\"Yes\",TEXT(Setup!$E$13,\"00\"),TEXT(Setup!$E$9,\"00\")),\" mins\"),IF(F$5=\"break\",CONCATENATE(TEXT(Setup!$E$10,\"00\"),\" mins\"),IF(ISNUMBER(F$13),CONCATENATE(TEXT(Setup!$E$9,\"00\"),\" mins\"),CONCATENATE(TEXT(Setup!$E$11,\"00\"),\" mins\"))))))","v":"15 mins"},{"$f":"IFERROR(CONCATENATE(INDEX(Setup!$C$17:$F$17,MATCH(G$13,Setup!$C$16:$F$16,0)),\" mins\"),IF(G$13=\"\",\"00 mins\",IF(AND(ISNUMBER(G$13),G$13=0),CONCATENATE(IF(Setup!$E$12=\"Yes\",TEXT(Setup!$E$13,\"00\"),TEXT(Setup!$E$9,\"00\")),\" mins\"),IF(G$5=\"break\",CONCATENATE(TEXT(Setup!$E$10,\"00\"),\" mins\"),IF(ISNUMBER(G$13),CONCATENATE(TEXT(Setup!$E$9,\"00\"),\" mins\"),CONCATENATE(TEXT(Setup!$E$11,\"00\"),\" mins\"))))))","v":"35 mins"},{"$f":"IFERROR(CONCATENATE(INDEX(Setup!$C$17:$F$17,MATCH(H$13,Setup!$C$16:$F$16,0)),\" mins\"),IF(H$13=\"\",\"00 mins\",IF(AND(ISNUMBER(H$13),H$13=0),CONCATENATE(IF(Setup!$E$12=\"Yes\",TEXT(Setup!$E$13,\"00\"),TEXT(Setup!$E$9,\"00\")),\" mins\"),IF(H$5=\"break\",CONCATENATE(TEXT(Setup!$E$10,\"00\"),\" mins\"),IF(ISNUMBER(H$13),CONCATENATE(TEXT(Setup!$E$9,\"00\"),\" mins\"),CONCATENATE(TEXT(Setup!$E$11,\"00\"),\" mins\"))))))","v":"35 mins"},{"$f":"IFERROR(CONCATENATE(INDEX(Setup!$C$17:$F$17,MATCH(I$13,Setup!$C$16:$F$16,0)),\" mins\"),IF(I$13=\"\",\"00 mins\",IF(AND(ISNUMBER(I$13),I$13=0),CONCATENATE(IF(Setup!$E$12=\"Yes\",TEXT(Setup!$E$13,\"00\"),TEXT(Setup!$E$9,\"00\")),\" mins\"),IF(I$5=\"break\",CONCATENATE(TEXT(Setup!$E$10,\"00\"),\" mins\"),IF(ISNUMBER(I$13),CONCATENATE(TEXT(Setup!$E$9,\"00\"),\" mins\"),CONCATENATE(TEXT(Setup!$E$11,\"00\"),\" mins\"))))))","v":"35 mins"},{"$f":"IFERROR(CONCATENATE(INDEX(Setup!$C$17:$F$17,MATCH(J$13,Setup!$C$16:$F$16,0)),\" mins\"),IF(J$13=\"\",\"00 mins\",IF(AND(ISNUMBER(J$13),J$13=0),CONCATENATE(IF(Setup!$E$12=\"Yes\",TEXT(Setup!$E$13,\"00\"),TEXT(Setup!$E$9,\"00\")),\" mins\"),IF(J$5=\"break\",CONCATENATE(TEXT(Setup!$E$10,\"00\"),\" mins\"),IF(ISNUMBER(J$13),CONCATENATE(TEXT(Setup!$E$9,\"00\"),\" mins\"),CONCATENATE(TEXT(Setup!$E$11,\"00\"),\" mins\"))))))","v":"00 mins"},{"$f":"IFERROR(CONCATENATE(INDEX(Setup!$C$17:$F$17,MATCH(K$13,Setup!$C$16:$F$16,0)),\" mins\"),IF(K$13=\"\",\"00 mins\",IF(AND(ISNUMBER(K$13),K$13=0),CONCATENATE(IF(Setup!$E$12=\"Yes\",TEXT(Setup!$E$13,\"00\"),TEXT(Setup!$E$9,\"00\")),\" mins\"),IF(K$5=\"break\",CONCATENATE(TEXT(Setup!$E$10,\"00\"),\" mins\"),IF(ISNUMBER(K$13),CONCATENATE(TEXT(Setup!$E$9,\"00\"),\" mins\"),CONCATENATE(TEXT(Setup!$E$11,\"00\"),\" mins\"))))))","v":"00 mins"},{"$f":"IFERROR(CONCATENATE(INDEX(Setup!$C$17:$F$17,MATCH(L$13,Setup!$C$16:$F$16,0)),\" mins\"),IF(L$13=\"\",\"00 mins\",IF(AND(ISNUMBER(L$13),L$13=0),CONCATENATE(IF(Setup!$E$12=\"Yes\",TEXT(Setup!$E$13,\"00\"),TEXT(Setup!$E$9,\"00\")),\" mins\"),IF(L$5=\"break\",CONCATENATE(TEXT(Setup!$E$10,\"00\"),\" mins\"),IF(ISNUMBER(L$13),CONCATENATE(TEXT(Setup!$E$9,\"00\"),\" mins\"),CONCATENATE(TEXT(Setup!$E$11,\"00\"),\" mins\"))))))","v":"00 mins"},{"$f":"IFERROR(CONCATENATE(INDEX(Setup!$C$17:$F$17,MATCH(M$13,Setup!$C$16:$F$16,0)),\" mins\"),IF(M$13=\"\",\"00 mins\",IF(AND(ISNUMBER(M$13),M$13=0),CONCATENATE(IF(Setup!$E$12=\"Yes\",TEXT(Setup!$E$13,\"00\"),TEXT(Setup!$E$9,\"00\")),\" mins\"),IF(M$5=\"break\",CONCATENATE(TEXT(Setup!$E$10,\"00\"),\" mins\"),IF(ISNUMBER(M$13),CONCATENATE(TEXT(Setup!$E$9,\"00\"),\" mins\"),CONCATENATE(TEXT(Setup!$E$11,\"00\"),\" mins\"))))))","v":"00 mins"},{"$f":"IFERROR(CONCATENATE(INDEX(Setup!$C$17:$F$17,MATCH(N$13,Setup!$C$16:$F$16,0)),\" mins\"),IF(N$13=\"\",\"00 mins\",IF(AND(ISNUMBER(N$13),N$13=0),CONCATENATE(IF(Setup!$E$12=\"Yes\",TEXT(Setup!$E$13,\"00\"),TEXT(Setup!$E$9,\"00\")),\" mins\"),IF(N$5=\"break\",CONCATENATE(TEXT(Setup!$E$10,\"00\"),\" mins\"),IF(ISNUMBER(N$13),CONCATENATE(TEXT(Setup!$E$9,\"00\"),\" mins\"),CONCATENATE(TEXT(Setup!$E$11,\"00\"),\" mins\"))))))","v":"00 mins"}]
[null,"Period",{"$f":"IF(Setup!$E$12=\"Yes\",0,1)","v":1},2,3,"Break",4,5,6]
[null,"Saturday",null,null,null,"Break"]

{"sheet":"Teacher Template","index":9,"n_rows":14,"n_cols":14,"rows_kept":14,"cut":false,"hidden":true,"merged":[[14,1,14,13],[0,1,0,13],[1,2,1,3],[1,10,1,11],[1,4,1,9],[1,12,1,13]]}
[null,{"$f":"IF($M2<>\"\",$M2,\"\")","v":""}]
[null,"Class Teacher : ",null,null,{"$f":"CONCATENATE(Setup!$A$1,CHAR(10),Setup!$A$2,\" \",Setup!$C$2)","v":"Demo School, Demo Lane, Demo City\n Time Table  2022-2023"},null,null,null,null,null,"Teacher :"]
[null,"Timing",{"$f":"IF(Setup!$C$18=Setup!$P$1,CONCATENATE(TEXT(TIME(Setup!$C$8,Setup!$D$8,0),\"hh:mm AM/PM\"),\"- \",TEXT(TIME(Setup!$C$8,Setup!$D$8+VALUE(LEFT(C$4,2)),0),\"hh:mm AM/PM\")),TEXT(TIME(Setup!$C$8,Setup!$D$8,0),\"hh:mm AM/PM\"))","v":"08:30 AM"},{"$f":"IF(Setup!$C$18=Setup!$P$1,(CONCATENATE(TEXT(TIMEVALUE(RIGHT(C$3,8)),\"hh:mm AM/PM\"),\"- \",TEXT(TIMEVALUE(RIGHT(C$3,8)) + TIME(0,VALUE(LEFT(D$4,2)),0),\"hh:mm AM/PM\"))),TEXT(TIMEVALUE(C$3)+TIME(0,VALUE(LEFT(C$4,2)),0),\"hh:mm AM/PM\"))","v":"08:50 AM"},{"$f":"IF(Setup!$C$18=Setup!$P$1,(CONCATENATE(TEXT(TIMEVALUE(RIGHT(D$3,8)),\"hh:mm AM/PM\"),\"- \",TEXT(TIMEVALUE(RIGHT(D$3,8)) + TIME(0,VALUE(LEFT(E$4,2)),0),\"hh:mm AM/PM\"))),TEXT(TIMEVALUE(D$3)+TIME(0,VALUE(LEFT(D$4,2)),0),\"hh:mm AM/PM\"))","v":"09:30 AM"},{"$f":"IF(Setup!$C$18=Setup!$P$1,(CONCATENATE(TEXT(TIMEVALUE(RIGHT(E$3,8)),\"hh:mm AM/PM\"),\"- \",TEXT(TIMEVALUE(RIGHT(E$3,8)) + TIME(0,VALUE(LEFT(F$4,2)),0),\"hh:mm AM/PM\"))),TEXT(TIMEVALUE(E$3)+TIME(0,VALUE(LEFT(E$4,2)),0),\"hh:mm AM/PM\"))","v":"10:10 AM"},{"$f":"IF(Setup!$C$18=Setup!$P$1,(CONCATENATE(TEXT(TIMEVALUE(RIGHT(F$3,8)),\"hh:mm AM/PM\"),\"- \",TEXT(TIMEVALUE(RIGHT(F$3,8)) + TIME(0,VALUE(LEFT(G$4,2)),0),\"hh:mm AM/PM\"))),TEXT(TIMEVALUE(F$3)+TIME(0,VALUE(LEFT(F$4,2)),0),\"hh:mm AM/PM\"))","v":"10:25 AM"},{"$f":"IF(Setup!$C$18=Setup!$P$1,(CONCATENATE(TEXT(TIMEVALUE(RIGHT(G$3,8)),\"hh:mm AM/PM\"),\"- \",TEXT(TIMEVALUE(RIGHT(G$3,8)) + TIME(0,VALUE(LEFT(H$4,2)),0),\"hh:mm AM/PM\"))),TEXT(TIMEVALUE(G$3)+TIME(0,VALUE(LEFT(G$4,2)),0),\"hh:mm AM/PM\"))","v":"11:05 AM"},{"$f":"IF(Setup!$C$18=Setup!$P$1,(CONCATENATE(TEXT(TIMEVALUE(RIGHT(H$3,8)),\"hh:mm AM/PM\"),\"- \",TEXT(TIMEVALUE(RIGHT(H$3,8)) + TIME(0,VALUE(LEFT(I$4,2)),0),\"hh:mm AM/PM\"))),TEXT(TIMEVALUE(H$3)+TIME(0,VALUE(LEFT(H$4,2)),0),\"hh:mm AM/PM\"))","v":"11:45 AM"},{"$f":"IF(Setup!$C$18=Setup!$P$1,(CONCATENATE(TEXT(TIMEVALUE(RIGHT(I$3,8)),\"hh:mm AM/PM\"),\"- \",TEXT(TIMEVALUE(RIGHT(I$3,8)) + TIME(0,VALUE(LEFT(J$4,2)),0),\"hh:mm AM/PM\"))),TEXT(TIMEVALUE(I$3)+TIME(0,VALUE(LEFT(I$4,2)),0),\"hh:mm AM/PM\"))","v":"12:25 PM"},{"$f":"IF(Setup!$C$18=Setup!$P$1,(CONCATENATE(TEXT(TIMEVALUE(RIGHT(J$3,8)),\"hh:mm AM/PM\"),\"- \",TEXT(TIMEVALUE(RIGHT(J$3,8)) + TIME(0,VALUE(LEFT(K$4,2)),0),\"hh:mm AM/PM\"))),TEXT(TIMEVALUE(J$3)+TIME(0,VALUE(LEFT(J$4,2)),0),\"hh:mm AM/PM\"))","v":"01:00 PM"},{"$f":"IF(Setup!$C$18=Setup!$P$1,(CONCATENATE(TEXT(TIMEVALUE(RIGHT(K$3,8)),\"hh:mm AM/PM\"),\"- \",TEXT(TIMEVALUE(RIGHT(K$3,8)) + TIME(0,VALUE(LEFT(L$4,2)),0),\"hh:mm AM/PM\"))),TEXT(TIMEVALUE(K$3)+TIME(0,VALUE(LEFT(K$4,2)),0),\"hh:mm AM/PM\"))","v":"01:35 PM"},{"$f":"IF(Setup!$C$18=Setup!$P$1,(CONCATENATE(TEXT(TIMEVALUE(RIGHT(L$3,8)),\"hh:mm AM/PM\"),\"- \",TEXT(TIMEVALUE(RIGHT(L$3,8)) + TIME(0,VALUE(LEFT(M$4,2)),0),\"hh:mm AM/PM\"))),TEXT(TIMEVALUE(L$3)+TIME(0,VALUE(LEFT(L$4,2)),0),\"hh:mm AM/PM\"))","v":"02:15 PM"},{"$f":"IF(Setup!$C$18=Setup!$P$1,(CONCATENATE(TEXT(TIMEVALUE(RIGHT(M$3,8)),\"hh:mm AM/PM\"),\"- \",TEXT(TIMEVALUE(RIGHT(M$3,8)) + TIME(0,VALUE(LEFT(N$4,2)),0),\"hh:mm AM/PM\"))),TEXT(TIMEVALUE(M$3)+TIME(0,VALUE(LEFT(M$4,2)),0),\"hh:mm AM/PM\"))","v":"03:00 PM"}]
[null,"Duration",{"$f":"IFERROR(CONCATENATE(INDEX(Setup!$C$15:$F$15,MATCH(C$5,Setup!$C$14:$F$14,0)),\" mins\"),IF(C$5=\"\",\"00 mins\",IF(AND(ISNUMBER(C$5),C$5=0),CONCATENATE(IF(Setup!$C$12=\"Yes\",TEXT(Setup!$C$13,\"00\"),TEXT(Setup!$C$9,\"00\")),\" mins\"),IF(C$5=\"break\",CONCATENATE(TEXT(Setup!$C$10,\"00\"),\" mins\"),IF(ISNUMBER(C$5),CONCATENATE(TEXT(Setup!$C$9,\"00\"),\" mins\"),CONCATENATE(TEXT(Setup!$C$11,\"00\"),\" mins\"))))))","v":"20 mins"},{"$f":"IFERROR(CONCATENATE(INDEX(Setup!$C$15:$F$15,MATCH(D$5,Setup!$C$14:$F$14,0)),\" mins\"),IF(D$5=\"\",\"00 mins\",IF(AND(ISNUMBER(D$5),D$5=0),CONCATENATE(IF(Setup!$C$12=\"Yes\",TEXT(Setup!$C$13,\"00\"),TEXT(Setup!$C$9,\"00\")),\" mins\"),IF(D$5=\"break\",CONCATENATE(TEXT(Setup!$C$10,\"00\"),\" mins\"),IF(ISNUMBER(D$5),CONCATENATE(TEXT(Setup!$C$9,\"00\"),\" mins\"),CONCATENATE(TEXT(Setup!$C$11,\"00\"),\" mins\"))))))","v":"40 mins"},{"$f":"IFERROR(CONCATENATE(INDEX(Setup!$C$15:$F$15,MATCH(E$5,Setup!$C$14:$F$14,0)),\" mins\"),IF(E$5=\"\",\"00 mins\",IF(AND(ISNUMBER(E$5),E$5=0),CONCATENATE(IF(Setup!$C$12=\"Yes\",TEXT(Setup!$C$13,\"00\"),TEXT(Setup!$C$9,\"00\")),\" mins\"),IF(E$5=\"break\",CONCATENATE(TEXT(Setup!$C$10,\"00\"),\" mins\"),IF(ISNUMBER(E$5),CONCATENATE(TEXT(Setup!$C$9,\"00\"),\" mins\"),CONCATENATE(TEXT(Setup!$C$11,\"00\"),\" mins\"))))))","v":"40 mins"},{"$f":"IFERROR(CONCATENATE(INDEX(Setup!$C$15:$F$15,MATCH(F$5,Setup!$C$14:$F$14,0)),\" mins\"),IF(F$5=\"\",\"00 mins\",IF(AND(ISNUMBER(F$5),F$5=0),CONCATENATE(IF(Setup!$C$12=\"Yes\",TEXT(Setup!$C$13,\"00\"),TEXT(Setup!$C$9,\"00\")),\" mins\"),IF(F$5=\"break\",CONCATENATE(TEXT(Setup!$C$10,\"00\"),\" mins\"),IF(ISNUMBER(F$5),CONCATENATE(TEXT(Setup!$C$9,\"00\"),\" mins\"),CONCATENATE(TEXT(Setup!$C$11,\"00\"),\" mins\"))))))","v":"15 mins"},{"$f":"IFERROR(CONCATENATE(INDEX(Setup!$C$15:$F$15,MATCH(G$5,Setup!$C$14:$F$14,0)),\" mins\"),IF(G$5=\"\",\"00 mins\",IF(AND(ISNUMBER(G$5),G$5=0),CONCATENATE(IF(Setup!$C$12=\"Yes\",TEXT(Setup!$C$13,\"00\"),TEXT(Setup!$C$9,\"00\")),\" mins\"),IF(G$5=\"break\",CONCATENATE(TEXT(Setup!$C$10,\"00\"),\" mins\"),IF(ISNUMBER(G$5),CONCATENATE(TEXT(Setup!$C$9,\"00\"),\" mins\"),CONCATENATE(TEXT(Setup!$C$11,\"00\"),\" mins\"))))))","v":"40 mins"},{"$f":"IFERROR(CONCATENATE(INDEX(Setup!$C$15:$F$15,MATCH(H$5,Setup!$C$14:$F$14,0)),\" mins\"),IF(H$5=\"\",\"00 mins\",IF(AND(ISNUMBER(H$5),H$5=0),CONCATENATE(IF(Setup!$C$12=\"Yes\",TEXT(Setup!$C$13,\"00\"),TEXT(Setup!$C$9,\"00\")),\" mins\"),IF(H$5=\"break\",CONCATENATE(TEXT(Setup!$C$10,\"00\"),\" mins\"),IF(ISNUMBER(H$5),CONCATENATE(TEXT(Setup!$C$9,\"00\"),\" mins\"),CONCATENATE(TEXT(Setup!$C$11,\"00\"),\" mins\"))))))","v":"40 mins"},{"$f":"IFERROR(CONCATENATE(INDEX(Setup!$C$15:$F$15,MATCH(I$5,Setup!$C$14:$F$14,0)),\" mins\"),IF(I$5=\"\",\"00 mins\",IF(AND(ISNUMBER(I$5),I$5=0),CONCATENATE(IF(Setup!$C$12=\"Yes\",TEXT(Setup!$C$13,\"00\"),TEXT(Setup!$C$9,\"00\")),\" mins\"),IF(I$5=\"break\",CONCATENATE(TEXT(Setup!$C$10,\"00\"),\" mins\"),IF(ISNUMBER(I$5),CONCATENATE(TEXT(Setup!$C$9,\"00\"),\" mins\"),CONCATENATE(TEXT(Setup!$C$11,\"00\"),\" mins\"))))))","v":"40 mins"},{"$f":"IFERROR(CONCATENATE(INDEX(Setup!$C$15:$F$15,MATCH(J$5,Setup!$C$14:$F$14,0)),\" mins\"),IF(J$5=\"\",\"00 mins\",IF(AND(ISNUMBER(J$5),J$5=0),CONCATENATE(IF(Setup!$C$12=\"Yes\",TEXT(Setup!$C$13,\"00\"),TEXT(Setup!$C$9,\"00\")),\" mins\"),IF(J$5=\"break\",CONCATENATE(TEXT(Setup!$C$10,\"00\"),\" mins\"),IF(ISNUMBER(J$5),CONCATENATE(TEXT(Setup!$C$9,\"00\"),\" mins\"),CONCATENATE(TEXT(Setup!$C$11,\"00\"),\" mins\"))))))","v":"35 mins"},{"$f":"IFERROR(CONCATENATE(INDEX(Setup!$C$15:$F$15,MATCH(K$5,Setup!$C$14:$F$14,0)),\" mins\"),IF(K$5=\"\",\"00 mins\",IF(AND(ISNUMBER(K$5),K$5=0),CONCATENATE(IF(Setup!$C$12=\"Yes\",TEXT(Setup!$C$13,\"00\"),TEXT(Setup!$C$9,\"00\")),\" mins\"),IF(K$5=\"break\",CONCATENATE(TEXT(Setup!$C$10,\"00\"),\" mins\"),IF(ISNUMBER(K$5),CONCATENATE(TEXT(Setup!$C$9,\"00\"),\" mins\"),CONCATENATE(TEXT(Setup!$C$11,\"00\"),\" mins\"))))))","v":"35 mins"},{"$f":"IFERROR(CONCATENATE(INDEX(Setup!$C$15:$F$15,MATCH(L$5,Setup!$C$14:$F$14,0)),\" mins\"),IF(L$5=\"\",\"00 mins\",IF(AND(ISNUMBER(L$5),L$5=0),CONCATENATE(IF(Setup!$C$12=\"Yes\",TEXT(Setup!$C$13,\"00\"),TEXT(Setup!$C$9,\"00\")),\" mins\"),IF(L$5=\"break\",CONCATENATE(TEXT(Setup!$C$10,\"00\"),\" mins\"),IF(ISNUMBER(L$5),CONCATENATE(TEXT(Setup!$C$9,\"00\"),\" mins\"),CONCATENATE(TEXT(Setup!$C$11,\"00\"),\" mins\"))))))","v":"40 mins"},{"$f":"IFERROR(CONCATENATE(INDEX(Setup!$C$15:$F$15,MATCH(M$5,Setup!$C$14:$F$14,0)),\" mins\"),IF(M$5=\"\",\"00 mins\",IF(AND(ISNUMBER(M$5),M$5=0),CONCATENATE(IF(Setup!$C$12=\"Yes\",TEXT(Setup!$C$13,\"00\"),TEXT(Setup!$C$9,\"00\")),\" mins\"),IF(M$5=\"break\",CONCATENATE(TEXT(Setup!$C$10,\"00\"),\" mins\"),IF(ISNUMBER(M$5),CONCATENATE(TEXT(Setup!$C$9,\"00\"),\" mins\"),CONCATENATE(TEXT(Setup!$C$11,\"00\"),\" mins\"))))))","v":"45 mins"},{"$f":"IFERROR(CONCATENATE(INDEX(Setup!$C$15:$F$15,MATCH(N$5,Setup!$C$14:$F$14,0)),\" mins\"),IF(N$5=\"\",\"00 mins\",IF(AND(ISNUMBER(N$5),N$5=0),CONCATENATE(IF(Setup!$C$12=\"Yes\",TEXT(Setup!$C$13,\"00\"),TEXT(Setup!$C$9,\"00\")),\" mins\"),IF(N$5=\"break\",CONCATENATE(TEXT(Setup!$C$10,\"00\"),\" mins\"),IF(ISNUMBER(N$5),CONCATENATE(TEXT(Setup!$C$9,\"00\"),\" mins\"),CONCATENATE(TEXT(Setup!$C$11,\"00\"),\" mins\"))))))","v":"00 mins"}]
[null,"Period",{"$f":"IF(Setup!$C$12 = \"Yes\",0,1)","v":0},1,2,"Break",3,4,5,6,"Lunch Break",7,8]
[null,"Monday","CT"]
[null,"Tuesday","CT"]
[null,"Wednesday","Assembly",null,null,"Break",null,null,null,null,"Lunch Break"]
[null,"Thursday","CT"]
[null,"Friday","Assembly"]
[null,"Timing",{"$f":"IF(Setup!$C$18=Setup!$P$1,CONCATENATE(TEXT(TIME(Setup!$E$8,Setup!$F$8,0),\"hh:mm AM/PM\"),\"- \",TEXT(TIME(Setup!$E$8,Setup!$F$8+VALUE(LEFT(C$12,2)),0),\"hh:mm AM/PM\")),TEXT(TIME(Setup!$E$8,Setup!$F$8,0),\"hh:mm AM/PM\"))","v":"09:00 AM"},{"$f":"IF(Setup!$C$18=Setup!$P$1,(CONCATENATE(TEXT(TIMEVALUE(RIGHT(C$11,8)),\"hh:mm AM/PM\"),\"- \",TEXT(TIMEVALUE(RIGHT(C$11,8)) + TIME(0,VALUE(LEFT(D$12,2)),0),\"hh:mm AM/PM\"))),TEXT(TIMEVALUE(C$11)+TIME(0,VALUE(LEFT(C$12,2)),0),\"hh:mm AM/PM\"))","v":"09:40 AM"},{"$f":"IF(Setup!$C$18=Setup!$P$1,(CONCATENATE(TEXT(TIMEVALUE(RIGHT(D$11,8)),\"hh:mm AM/PM\"),\"- \",TEXT(TIMEVALUE(RIGHT(D$11,8)) + TIME(0,VALUE(LEFT(E$12,2)),0),\"hh:mm AM/PM\"))),TEXT(TIMEVALUE(D$11)+TIME(0,VALUE(LEFT(D$12,2)),0),\"hh:mm AM/PM\"))","v":"10:20 AM"},{"$f":"IF(Setup!$C$18=Setup!$P$1,(CONCATENATE(TEXT(TIMEVALUE(RIGHT(E$11,8)),\"hh:mm AM/PM\"),\"- \",TEXT(TIMEVALUE(RIGHT(E$11,8)) + TIME(0,VALUE(LEFT(F$12,2)),0),\"hh:mm AM/PM\"))),TEXT(TIMEVALUE(E$11)+TIME(0,VALUE(LEFT(E$12,2)),0),\"hh:mm AM/PM\"))","v":"11:00 AM"},{"$f":"IF(Setup!$C$18=Setup!$P$1,(CONCATENATE(TEXT(TIMEVALUE(RIGHT(F$11,8)),\"hh:mm AM/PM\"),\"- \",TEXT(TIMEVALUE(RIGHT(F$11,8)) + TIME(0,VALUE(LEFT(G$12,2)),0),\"hh:mm AM/PM\"))),TEXT(TIMEVALUE(F$11)+TIME(0,VALUE(LEFT(F$12,2)),0),\"hh:mm AM/PM\"))","v":"11:15 AM"},{"$f":"IF(Setup!$C$18=Setup!$P$1,(CONCATENATE(TEXT(TIMEVALUE(RIGHT(G$11,8)),\"hh:mm AM/PM\"),\"- \",TEXT(TIMEVALUE(RIGHT(G$11,8)) + TIME(0,VALUE(LEFT(H$12,2)),0),\"hh:mm AM/PM\"))),TEXT(TIMEVALUE(G$11)+TIME(0,VALUE(LEFT(G$12,2)),0),\"hh:mm AM/PM\"))","v":"11:50 AM"},{"$f":"IF(Setup!$C$18=Setup!$P$1,(CONCATENATE(TEXT(TIMEVALUE(RIGHT(H$11,8)),\"hh:mm AM/PM\"),\"- \",TEXT(TIMEVALUE(RIGHT(H$11,8)) + TIME(0,VALUE(LEFT(I$12,2)),0),\"hh:mm AM/PM\"))),TEXT(TIMEVALUE(H$11)+TIME(0,VALUE(LEFT(H$12,2)),0),\"hh:mm AM/PM\"))","v":"12:25 PM"},{"$f":"IF(Setup!$C$18=Setup!$P$1,(CONCATENATE(TEXT(TIMEVALUE(RIGHT(I$11,8)),\"hh:mm AM/PM\"),\"- \",TEXT(TIMEVALUE(RIGHT(I$11,8)) + TIME(0,VALUE(LEFT(J$12,2)),0),\"hh:mm AM/PM\"))),TEXT(TIMEVALUE(I$11)+TIME(0,VALUE(LEFT(I$12,2)),0),\"hh:mm AM/PM\"))","v":"01:00 PM"},{"$f":"IF(Setup!$C$18=Setup!$P$1,(CONCATENATE(TEXT(TIMEVALUE(RIGHT(J$11,8)),\"hh:mm AM/PM\"),\"- \",TEXT(TIMEVALUE(RIGHT(J$11,8)) + TIME(0,VALUE(LEFT(K$12,2)),0),\"hh:mm AM/PM\"))),TEXT(TIMEVALUE(J$11)+TIME(0,VALUE(LEFT(J$12,2)),0),\"hh:mm AM/PM\"))","v":"01:00 PM"},{"$f":"IF(Setup!$C$18=Setup!$P$1,(CONCATENATE(TEXT(TIMEVALUE(RIGHT(K$11,8)),\"hh:mm AM/PM\"),\"- \",TEXT(TIMEVALUE(RIGHT(K$11,8)) + TIME(0,VALUE(LEFT(L$12,2)),0),\"hh:mm AM/PM\"))),TEXT(TIMEVALUE(K$11)+TIME(0,VALUE(LEFT(K$12,2)),0),\"hh:mm AM/PM\"))","v":"01:00 PM"},{"$f":"IF(Setup!$C$18=Setup!$P$1,(CONCATENATE(TEXT(TIMEVALUE(RIGHT(L$11,8)),\"hh:mm AM/PM\"),\"- \",TEXT(TIMEVALUE(RIGHT(L$11,8)) + TIME(0,VALUE(LEFT(M$12,2)),0),\"hh:mm AM/PM\"))),TEXT(TIMEVALUE(L$11)+TIME(0,VALUE(LEFT(L$12,2)),0),\"hh:mm AM/PM\"))","v":"01:00 PM"},{"$f":"IF(Setup!$C$18=Setup!$P$1,(CONCATENATE(TEXT(TIMEVALUE(RIGHT(M$11,8)),\"hh:mm AM/PM\"),\"- \",TEXT(TIMEVALUE(RIGHT(M$11,8)) + TIME(0,VALUE(LEFT(N$12,2)),0),\"hh:mm AM/PM\"))),TEXT(TIMEVALUE(M$11)+TIME(0,VALUE(LEFT(M$12,2)),0),\"hh:mm AM/PM\"))","v":"01:00 PM"}]
[null,"Duration",{"$f":"IFERROR(CONCATENATE(INDEX(Setup!$C$17:$F$17,MATCH(C$13,Setup!$C$16:$F$16,0)),\" mins\"),IF(C$13=\"\",\"00 mins\",IF(AND(ISNUMBER(C$13),C$13=0),CONCATENATE(IF(Setup!$E$12=\"Yes\",TEXT(Setup!$E$13,\"00\"),TEXT(Setup!$E$9,\"00\")),\" mins\"),IF(C$5=\"break\",CONCATENATE(TEXT(Setup!$E$10,\"00\"),\" mins\"),IF(ISNUMBER(C$13),CONCATENATE(TEXT(Setup!$E$9,\"00\"),\" mins\"),CONCATENATE(TEXT(Setup!$E$11,\"00\"),\" mins\"))))))","v":"40 mins"},{"$f":"IFERROR(CONCATENATE(INDEX(Setup!$C$17:$F$17,MATCH(D$13,Setup!$C$16:$F$16,0)),\" mins\"),IF(D$13=\"\",\"00 mins\",IF(AND(ISNUMBER(D$13),D$13=0),CONCATENATE(IF(Setup!$E$12=\"Yes\",TEXT(Setup!$E$13,\"00\"),TEXT(Setup!$E$9,\"00\")),\" mins\"),IF(D$5=\"break\",CONCATENATE(TEXT(Setup!$E$10,\"00\"),\" mins\"),IF(ISNUMBER(D$13),CONCATENATE(TEXT(Setup!$E$9,\"00\"),\" mins\"),CONCATENATE(TEXT(Setup!$E$11,\"00\"),\" mins\"))))))","v":"40 mins"},{"$f":"IFERROR(CONCATENATE(INDEX(Setup!$C$17:$F$17,MATCH(E$13,Setup!$C$16:$F$16,0)),\" mins\"),IF(E$13=\"\",\"00 mins\",IF(AND(ISNUMBER(E$13),E$13=0),CONCATENATE(IF(Setup!$E$12=\"Yes\",TEXT(Setup!$E$13,\"00\"),TEXT(Setup!$E$9,\"00\")),\" mins\"),IF(E$5=\"break\",CONCATENATE(TEXT(Setup!$E$10,\"00\"),\" mins\"),IF(ISNUMBER(E$13),CONCATENATE(TEXT(Setup!$E$9,\"00\"),\" mins\"),CONCATENATE(TEXT(Setup!$E$11,\"00\"),\" mins\"))))))","v":"40 mins"},{"$f":"IFERROR(CONCATENATE(INDEX(Setup!$C$17:$F$17,MATCH(F$13,Setup!$C$16:$F$16,0)),\" mins\"),IF(F$13=\"\",\"00 mins\",IF(AND(ISNUMBER(F$13),F$13=0),CONCATENATE(IF(Setup!$E$12=\"Yes\",TEXT(Setup!$E$13,\"00\"),TEXT(Setup!$E$9,\"00\")),\" mins\"),IF(F$5=\"break\",CONCATENATE(TEXT(Setup!$E$10,\"00\"),\" mins\"),IF(ISNUMBER(F$13),CONCATENATE(TEXT(Setup!$E$9,\"00\"),\" mins\"),CONCATENATE(TEXT(Setup!$E$11,\"00\"),\" mins\"))))))","v":"15 mins"},{"$f":"IFERROR(CONCATENATE(INDEX(Setup!$C$17:$F$17,MATCH(G$13,Setup!$C$16:$F$16,0)),\" mins\"),IF(G$13=\"\",\"00 mins\",IF(AND(ISNUMBER(G$13),G$13=0),CONCATENATE(IF(Setup!$E$12=\"Yes\",TEXT(Setup!$E$13,\"00\"),TEXT(Setup!$E$9,\"00\")),\" mins\"),IF(G$5=\"break\",CONCATENATE(TEXT(Setup!$E$10,\"00\"),\" mins\"),IF(ISNUMBER(G$13),CONCATENATE(TEXT(Setup!$E$9,\"00\"),\" mins\"),CONCATENATE(TEXT(Setup!$E$11,\"00\"),\" mins\"))))))","v":"35 mins"},{"$f":"IFERROR(CONCATENATE(INDEX(Setup!$C$17:$F$17,MATCH(H$13,Setup!$C$16:$F$16,0)),\" mins\"),IF(H$13=\"\",\"00 mins\",IF(AND(ISNUMBER(H$13),H$13=0),CONCATENATE(IF(Setup!$E$12=\"Yes\",TEXT(Setup!$E$13,\"00\"),TEXT(Setup!$E$9,\"00\")),\" mins\"),IF(H$5=\"break\",CONCATENATE(TEXT(Setup!$E$10,\"00\"),\" mins\"),IF(ISNUMBER(H$13),CONCATENATE(TEXT(Setup!$E$9,\"00\"),\" mins\"),CONCATENATE(TEXT(Setup!$E$11,\"00\"),\" mins\"))))))","v":"35 mins"},{"$f":"IFERROR(CONCATENATE(INDEX(Setup!$C$17:$F$17,MATCH(I$13,Setup!$C$16:$F$16,0)),\" mins\"),IF(I$13=\"\",\"00 mins\",IF(AND(ISNUMBER(I$13),I$13=0),CONCATENATE(IF(Setup!$E$12=\"Yes\",TEXT(Setup!$E$13,\"00\"),TEXT(Setup!$E$9,\"00\")),\" mins\"),IF(I$5=\"break\",CONCATENATE(TEXT(Setup!$E$10,\"00\"),\" mins\"),IF(ISNUMBER(I$13),CONCATENATE(TEXT(Setup!$E$9,\"00\"),\" mins\"),CONCATENATE(TEXT(Setup!$E$11,\"00\"),\" mins\"))))))","v":"35 mins"},{"$f":"IFERROR(CONCATENATE(INDEX(Setup!$C$17:$F$17,MATCH(J$13,Setup!$C$16:$F$16,0)),\" mins\"),IF(J$13=\"\",\"00 mins\",IF(AND(ISNUMBER(J$13),J$13=0),CONCATENATE(IF(Setup!$E$12=\"Yes\",TEXT(Setup!$E$13,\"00\"),TEXT(Setup!$E$9,\"00\")),\" mins\"),IF(J$5=\"break\",CONCATENATE(TEXT(Setup!$E$10,\"00\"),\" mins\"),IF(ISNUMBER(J$13),CONCATENATE(TEXT(Setup!$E$9,\"00\"),\" mins\"),CONCATENATE(TEXT(Setup!$E$11,\"00\"),\" mins\"))))))","v":"00 mins"},{"$f":"IFERROR(CONCATENATE(INDEX(Setup!$C$17:$F$17,MATCH(K$13,Setup!$C$16:$F$16,0)),\" mins\"),IF(K$13=\"\",\"00 mins\",IF(AND(ISNUMBER(K$13),K$13=0),CONCATENATE(IF(Setup!$E$12=\"Yes\",TEXT(Setup!$E$13,\"00\"),TEXT(Setup!$E$9,\"00\")),\" mins\"),IF(K$5=\"break\",CONCATENATE(TEXT(Setup!$E$10,\"00\"),\" mins\"),IF(ISNUMBER(K$13),CONCATENATE(TEXT(Setup!$E$9,\"00\"),\" mins\"),CONCATENATE(TEXT(Setup!$E$11,\"00\"),\" mins\"))))))","v":"00 mins"},{"$f":"IFERROR(CONCATENATE(INDEX(Setup!$C$17:$F$17,MATCH(L$13,Setup!$C$16:$F$16,0)),\" mins\"),IF(L$13=\"\",\"00 mins\",IF(AND(ISNUMBER(L$13),L$13=0),CONCATENATE(IF(Setup!$E$12=\"Yes\",TEXT(Setup!$E$13,\"00\"),TEXT(Setup!$E$9,\"00\")),\" mins\"),IF(L$5=\"break\",CONCATENATE(TEXT(Setup!$E$10,\"00\"),\" mins\"),IF(ISNUMBER(L$13),CONCATENATE(TEXT(Setup!$E$9,\"00\"),\" mins\"),CONCATENATE(TEXT(Setup!$E$11,\"00\"),\" mins\"))))))","v":"00 mins"},{"$f":"IFERROR(CONCATENATE(INDEX(Setup!$C$17:$F$17,MATCH(M$13,Setup!$C$16:$F$16,0)),\" mins\"),IF(M$13=\"\",\"00 mins\",IF(AND(ISNUMBER(M$13),M$13=0),CONCATENATE(IF(Setup!$E$12=\"Yes\",TEXT(Setup!$E$13,\"00\"),TEXT(Setup!$E$9,\"00\")),\" mins\"),IF(M$5=\"break\",CONCATENATE(TEXT(Setup!$E$10,\"00\"),\" mins\"),IF(ISNUMBER(M$13),CONCATENATE(TEXT(Setup!$E$9,\"00\"),\" mins\"),CONCATENATE(TEXT(Setup!$E$11,\"00\"),\" mins\"))))))","v":"00 mins"},{"$f":"IFERROR(CONCATENATE(INDEX(Setup!$C$17:$F$17,MATCH(N$13,Setup!$C$16:$F$16,0)),\" mins\"),IF(N$13=\"\",\"00 mins\",IF(AND(ISNUMBER(N$13),N$13=0),CONCATENATE(IF(Setup!$E$12=\"Yes\",TEXT(Setup!$E$13,\"00\"),TEXT(Setup!$E$9,\"00\")),\" mins\"),IF(N$5=\"break\",CONCATENATE(TEXT(Setup!$E$10,\"00\"),\" mins\"),IF(ISNUMBER(N$13),CONCATENATE(TEXT(Setup!$E$9,\"00\"),\" mins\"),CONCATENATE(TEXT(Setup!$E$11,\"00\"),\" mins\"))))))","v":"00 mins"}]
[null,"Period",{"$f":"IF(Setup!$E$12=\"Yes\",0,1)","v":1},2,3,"Break",4,5,6]
[null,"Saturday",null,null,null,"Break"]

{"sheet":"Teacher Free Period Template","index":10,"n_rows":8,"n_cols":7,"rows_kept":8,"cut":false,"hidden":true,"merged":[[6,0,6,6],[1,0,3,6],[4,0,5,0]]}
[]
[{"$f":"CONCATENATE(UPPER(MID(CELL(\"filename\",A1),FIND(\"]\",CELL(\"filename\",A1))+1,255)),\" - \",Setup!$C$2)","v":"TEACHER FREE PERIOD TEMPLATE - 2022-2023"}]
[]
[]
["Substitution Check:","Class","WeekDay","Period"]
[null,null,null,null,{"$f":"IF($C$6=\"Saturday\",MAX('Class Template'!$A$13:$O$13),MAX('Class Template'!$A$5:$O$5))","v":8}]
["Teacher Free Period "]
["Teacher","Monday","Tuesday","Wednesday","Thursday","Friday","Saturday"]